Workbook

Sheet Table list
A1: QUARTERLY GDP BY PRODUCTION APPROACH
B4: Not Seasonally Adjusted Data
B5: Main Economic Activities
A6: Table 1 | B6: QGDP at Current prices
A7: Table 2 | B7: QGDP at Constant Prices (base year 2013)
A8: Table 3 | B8: QGDP (2013=100), Real Growth Rates, comparison with corresponding quarter of previous year
B10: Detailed Economic Activities
A11: Table 1.1 | B11: QGDP at Current prices
A12: Table 1.2 | B12: QGDP at Constant Prices (base year 2013)
A13: Table 1.3 | B13: QGDP (2013=100), Real Growth Rates, comparison with corresponding quarter of previous year

Sheet T.1.
A1: Table 1: Quarterly Gross Value Added at Current Prices (Main Economic Activities)
A3: Non-Seasonally Adjusted
H4: (D'000)
A5: ISIC Rev.4 | C5: Gross value added by main industries | F5: Gross value added | G5: Net Taxes | H5: Gross domestic product
C6: Agriculture, forestry and fishing | D6: Industry | E6: Services
C8: 1 | D8: 2 | E8: 3 | F8: 4=1+2+3 | G8: 5 | H8: 6=4+5 | I8: Deflator
A10: 2013 | C10: 12970404.91 | D10: 5883544.649 | E10: 27267449.16 | F10: 46121398.71 | G10: 3342197.869 | H10: 49463596.58
A11: 2014 | C11: 11523423.63 | D11: 6780409.791 | E11: 28958193.72 | F11: 47262027.14 | G11: 4047052.197 | H11: 51309079.34
A12: 2015 | C12: 13010201.24 | D12: 10042816.76 | E12: 30397588.34 | F12: 53450606.34 | G12: 5130455.265 | H12: 58581061.6
A13: 2016 | C13: 14076528.86 | D13: 13480415.6 | E13: 31421024.71 | F13: 58977969.17 | G13: 5411970.103 | H13: 64389939.27
A14: 2017 | C14: 14731188.51 | D14: 12550369.9 | E14: 37473714.54 | F14: 64755272.95 | G14: 5386915.297 | H14: 70142188.25
A15: 2018 | C15: 15985864.55 | D15: 13925510.51 | E15: 44167774.5 | F15: 74079149.56 | G15: 6366650.379 | H15: 80445799.94
A16: 2019 | C16: 18162426.27 | D16: 15691523.89 | E16: 49731583.63 | F16: 83585533.79 | G16: 7208230.661 | H16: 90793764.45
A17: 2020 | C17: 19826989.53 | D17: 15729512.42 | E17: 50354891.22 | F17: 85911393.17 | G17: 7418415.957 | H17: 93329809.13
A18: 2021 | C18: 24873070.98 | D18: 16753581.21 | E18: 56322856.92 | F18: 97949509.12 | G18: 7537528.41 | H18: 105487037.5
A19: 2022 | C19: 27682438.33 | D19: 18877183.25 | E19: 67363599.5 | F19: =113923221079.928/1000 -> 113923221.1 | G19: 7169986.279 | H19: 121093207.4
A20: 2023* | C20: 34364342.65 | D20: 24438969.54 | E20: 78696412.47 | F20: 137499724.6 | G20: 9509412.15 | H20: 147009136.8
A22: 2013 | B22: Q1 | C22: 2320993.142 | D22: 1375760.995 | E22: 6734143.541 | F22: 10430897.68 | G22: 743443.3135 | H22: 11174340.99
B23: Q2 | C23: 2657817.162 | D23: 1702036.98 | E23: 7555381.343 | F23: 11915235.48 | G23: 783798.2128 | H23: 12699033.7
B24: Q3 | C24: 6018985.08 | D24: 1343539.794 | E24: 6385500.106 | F24: 13748024.98 | G24: 1018338.026 | H24: 14766363.01
B25: Q4 | C25: 1972609.523 | D25: 1462206.879 | E25: 6592424.167 | F25: 10027240.57 | G25: 796618.3175 | H25: 10823858.89
A26: 2014 | B26: Q1 | C26: 2249124.115 | D26: 1602440.086 | E26: 7416017.167 | F26: 11267581.37 | G26: 972255.2289 | H26: 12239836.6
B27: Q2 | C27: 2417183.813 | D27: 1961721.8 | E27: 7567836.036 | F27: 11946741.65 | G27: 1013092.531 | H27: 12959834.18
B28: Q3 | C28: 4948596.055 | D28: 1751388.633 | E28: 7128461.19 | F28: 13828445.88 | G28: 1133112.304 | H28: 14961558.18
B29: Q4 | C29: 1908519.65 | D29: 1464859.273 | E29: 6845879.325 | F29: 10219258.25 | G29: 928592.1329 | H29: 11147850.38
A30: 2015 | B30: Q1 | C30: 2556959.277 | D30: 2731651.064 | E30: 7983079.274 | F30: 13271689.61 | G30: 1206125.783 | H30: 14477815.4
B31: Q2 | C31: 2775286.13 | D31: 2907159.217 | E31: 8453951.652 | F31: 14136397 | G31: 1299797.296 | H31: 15436194.29
B32: Q3 | C32: 5491640.789 | D32: 2291390.277 | E32: 6529357.253 | F32: 14312388.32 | G32: 1386285.289 | H32: 15698673.61
B33: Q4 | C33: 2186315.041 | D33: 2112616.202 | E33: 7431200.162 | F33: 11730131.4 | G33: 1238246.897 | H33: 12968378.3
A34: 2016 | B34: Q1 | C34: 2970700.002 | D34: 4244175.201 | E34: 8168112.366 | F34: 15382987.57 | G34: 1353917.756 | H34: 16736905.33
B35: Q2 | C35: 3013596.891 | D35: 4448516.949 | E35: 8054830.506 | F35: 15516944.35 | G35: 1404813.29 | H35: 16921757.64
B36: Q3 | C36: 5609602.249 | D36: 2450848.761 | E36: 7154944.734 | F36: 15215395.74 | G36: 1372300.444 | H36: 16587696.19
B37: Q4 | C37: 2482629.713 | D37: 2336874.689 | E37: 8043137.104 | F37: 12862641.51 | G37: 1280938.613 | H37: 14143580.12
A38: 2017 | B38: Q1 | C38: 3483170.367 | D38: 2938807.176 | E38: 8196889.02 | F38: 14618866.56 | G38: 1098753.414 | H38: 15717619.98
B39: Q2 | C39: 3344468.912 | D39: 4354305.312 | E39: 9547757.506 | F39: 17246531.73 | G39: 1370768.837 | H39: 18617300.57
B40: Q3 | C40: 5301857.868 | D40: 2478301.874 | E40: 9763404.683 | F40: 17543564.43 | G40: 1421368.637 | H40: 18964933.06
B41: Q4 | C41: 2601691.367 | D41: 2778955.537 | E41: 9965663.328 | F41: 15346310.23 | G41: 1496024.41 | H41: 16842334.64
A42: 2018 | B42: Q1 | C42: 3661779.193 | D42: 3065483.883 | E42: 10228911.03 | F42: 16956174.11 | G42: 1619136.383 | H42: 18575310.49
B43: Q2 | C43: 3679070.411 | D43: 5329760.474 | E43: 10368119.92 | F43: 19376950.8 | G43: 1614201.204 | H43: 20991152.01
B44: Q3 | C44: 5839987.897 | D44: 3139893.069 | E44: 11590595.44 | F44: 20570476.41 | G44: 1571027.041 | H44: 22141503.45
B45: Q4 | C45: 2805027.047 | D45: 2390373.082 | E45: 11980148.11 | F45: 17175548.24 | G45: 1562285.752 | H45: 18737833.99
A46: 2019 | B46: Q1 | C46: 4423200.805 | D46: 3580398.209 | E46: 12852015.06 | F46: 20855614.07 | G46: 1721472.92 | H46: 22577086.99
B47: Q2 | C47: 4579277.772 | D47: 5409821.173 | E47: 13227948.66 | F47: 23217047.61 | G47: 1890072.21 | H47: 25107119.82
B48: Q3 | C48: 5906521.626 | D48: 3659093.456 | E48: 11435530.74 | F48: 21001145.82 | G48: 1820324.894 | H48: 22821470.71
B49: Q4 | C49: 3253426.07 | D49: 3042211.052 | E49: 12216089.17 | F49: 18511726.29 | G49: 1776360.636 | H49: 20288086.93
A50: 2020 | B50: Q1 | C50: 4966607.19 | D50: 4004861.761 | E50: 14916333.96 | F50: 23887802.91 | G50: 2077345.926 | H50: 25965148.84
B51: Q2 | C51: 4779193.01 | D51: 5226544.151 | E51: 12181623.77 | F51: 22187360.93 | G51: 1799002.436 | H51: 23986363.36
B52: Q3 | C52: 6369019.405 | D52: 3382264.385 | E52: 11855971.8 | F52: 21607255.59 | G52: 1750292.065 | H52: 23357547.65
B53: Q4 | C53: 3712169.923 | D53: 3115842.127 | E53: 11400961.69 | F53: 18228973.74 | G53: 1791775.529 | H53: 20020749.27
A54: 2021 | B54: Q1 | C54: 6100630.077 | D54: 3832721.027 | E54: 14194374.23 | F54: 24127725.33 | G54: 1863846.085 | H54: 25991571.42
B55: Q2 | C55: 6115343.935 | D55: 4968845.418 | E55: 13917998.81 | F55: 25002188.17 | G55: 2028304.616 | H55: 27030492.78
B56: Q3 | C56: 8057605.872 | D56: 4313107.49 | E56: 13373150.86 | F56: 25743864.22 | G56: 2012655.571 | H56: 27756519.79
B57: Q4 | C57: 4599491.1 | D57: 3638907.279 | E57: 14837333.02 | F57: 23075731.4 | G57: 1632722.138 | H57: 24708453.53
A58: 2022 | B58: Q1 | C58: ='[23]QGDP CP+Fisim'!B40+'[23]QGDP CP+Fisim'!E40 -> 7232487.806 | D58: =SUM('[23]QGDP CP+Fisim'!F40:J40) -> 3977145.045 | E58: =SUM('[23]QGDP CP+Fisim'!K40:W40) -> 16140461.75 | F58: =SUM(D58:E58)+C58 -> 27350094.61 | G58: ='[23]QGDP CP+Fisim'!Y40 -> 1858649.949 | H58: =F58+G58 -> 29208744.55
B59: Q2 | C59: ='[23]QGDP CP+Fisim'!B41+'[23]QGDP CP+Fisim'!E41 -> 7039913.799 | D59: =SUM('[23]QGDP CP+Fisim'!F41:J41) -> 5133274.154 | E59: =SUM('[23]QGDP CP+Fisim'!K41:W41) -> 16263622.77 | F59: 28436810.72 | G59: ='[23]QGDP CP+Fisim'!Y41 -> 1605749.534 | H59: 30042560.26
B60: Q3 | C60: ='[23]QGDP CP+Fisim'!B42+'[23]QGDP CP+Fisim'!E42 -> 8202090.458 | D60: =SUM('[23]QGDP CP+Fisim'!F42:J42) -> 4358877.059 | E60: =SUM('[23]QGDP CP+Fisim'!K42:W42) -> 15691569.47 | F60: 28252536.99 | G60: ='[23]QGDP CP+Fisim'!Y42 -> 1673406.525 | H60: 29925943.51
B61: Q4 | C61: ='[23]QGDP CP+Fisim'!B43+'[23]QGDP CP+Fisim'!E43 -> 5139746.306 | D61: =SUM('[23]QGDP CP+Fisim'!F43:J43) -> 4117014.752 | E61: =SUM('[23]QGDP CP+Fisim'!K43:W43) -> 17064440.48 | F61: 26321201.54 | G61: ='[23]QGDP CP+Fisim'!Y43 -> 2032180.27 | H61: 28353381.81
A62: 2023 | B62: Q1 | C62: ='[23]T.1.'!C62 -> 6718973.737 | D62: ='[23]T.1.'!D62 -> 5111615.703 | E62: ='[23]T.1.'!E62 -> 18790883.51 | F62: ='[23]T.1.'!F62 -> 30621472.95 | G62: ='[23]T.1.'!G62 -> 2238525.229 | H62: ='[23]T.1.'!H62 -> 32859998.18
B63: Q2 | C63: ='[23]T.1.'!C63 -> 6050220.912 | D63: ='[23]T.1.'!D63 -> 7786514.71 | E63: ='[23]T.1.'!E63 -> 18649176.67 | F63: ='[23]T.1.'!F63 -> 32485912.29 | G63: ='[23]T.1.'!G63 -> 2487547.099 | H63: ='[23]T.1.'!H63 -> 34973459.39
B64: Q3 | C64: ='[23]T.1.'!C64 -> 8422323.407 | D64: ='[23]T.1.'!D64 -> 4734851.687 | E64: ='[23]T.1.'!E64 -> 19699589.97 | F64: ='[23]T.1.'!F64 -> 32856765.07 | G64: ='[23]T.1.'!G64 -> 2367124.818 | H64: ='[23]T.1.'!H64 -> 35223889.88
B65: Q4 | C65: ='[23]T.1.'!C65 -> 5320760.861 | D65: ='[23]T.1.'!D65 -> 4921634.242 | E65: ='[23]T.1.'!E65 -> 20908060.71 | F65: ='[23]T.1.'!F65 -> 31150455.82 | G65: ='[23]T.1.'!G65 -> 2408695.362 | H65: ='[23]T.1.'!H65 -> 33559151.18
A66: 2024* | B66: Q1 | C66: 5921744.575 | D66: 6472603.783 | E66: 24823662.48 | F66: 37218010.84 | G66: 3065958.319 | H66: 40283969.16
B67: Q2 | C67: 6613933.549 | D67: 6460666.313 | E67: 23718939.94 | F67: 36793539.81 | G67: 2875317.569 | H67: 39668857.37
B68: Q3 | C68: 11682684.28 | D68: 5607518.43 | E68: 22248314.44 | F68: 39538517.15 | G68: 2883686.56 | H68: 42422203.71
B69: Q4 | C69: 6136952.795 | D69: 6254547.224 | E69: 23100470.45 | F69: 35491970.47 | G69: 3299052.19 | H69: 38791022.66
A70: 2025 | B70: Q1 | C70: 7529905.238 | D70: 6283493.158 | E70: 30315504.98 | F70: 44128903.38 | G70: 3928581.76 | H70: 48057485.14
A73: * preliminary

Sheet T.2
A1: Table 2.Quarterly Gross Value Added at Constant Prices (Main Economic Activities) (2013 base year prices)
A3: Non-Seasonally Adjusted
H4: (D'000)
A5: ISIC Rev.4 | C5: Gross value added by industry | F5: Gross value added | G5: Net Taxes | H5: Gross domestic product
C6: Agriculture, forestry and fishing | D6: Industry | E6: Services
C8: 1 | D8: 2 | E8: 3 | F8: 4=1+2+3 | G8: 5 | H8: 6=4+5
A10: 2014 | C10: 11364069.48 | D10: 6446782.331 | E10: 27638043.39 | F10: 45448895.2 | G10: 3318559.371 | H10: 48767454.57
A11: 2015 | C11: 11812967.62 | D11: 7904545.86 | E11: 27570826.42 | F11: 47288339.91 | G11: 3458133.985 | H11: 50746473.89
A12: 2016 | C12: 11785258.71 | D12: 9423800.547 | E12: 26997335.48 | F12: 48206394.73 | G12: 3526265.69 | H12: 51732660.42
A13: 2017 | C13: 11269163.9 | D13: 9089466.573 | E13: 30164904.4 | F13: 50523534.87 | G13: 3703990.634 | H13: 54227525.51
A14: 2018 | C14: 11685136.94 | D14: 9273805.613 | E14: 33216983.56 | F14: 54175926.12 | G14: 3974901.432 | H14: 58150827.55
A15: 2019 | C15: 11672049.28 | D15: 10643674.73 | E15: 35258896.88 | F15: 57574620.89 | G15: 4194381.962 | H15: 61769002.85
A16: 2020 | C16: 12908210.15 | D16: 11518685.85 | E16: 33509127.62 | F16: 57936023.62 | G16: 4198335.086 | H16: 62134358.7
A17: 2021 | C17: 14673865.66 | D17: 11850418.75 | E17: 34415956.46 | F17: 60940240.87 | G17: 4459880.336 | H17: 65400121.2
A18: 2022* | C18: 15208869.24 | D18: 12213827.61 | E18: 36489286.43 | F18: 63911983.28 | G18: 4696111.62 | H18: 68608094.9
A19: 2023* | C19: 15712491.22 | D19: 13548347.44 | E19: 37655959.37 | F19: 66916798.03 | G19: 4906418.31 | H19: 71823216.34
A21: 2014 | B21: Q1 | C21: 2160713.93 | D21: 1643109.776 | E21: 7105148.277 | F21: 10908971.98 | G21: 798102.5762 | H21: 11707074.56
B22: Q2 | C22: 2391641.538 | D22: 1918883.117 | E22: 7255953.927 | F22: 11566478.58 | G22: 842714.7769 | H22: 12409193.36
B23: Q3 | C23: 5033974.448 | D23: 1599821.371 | E23: 6821587.612 | F23: 13455383.43 | G23: 990796.7511 | H23: 14446180.18
B24: Q4 | C24: 1777739.562 | D24: 1284968.066 | E24: 6455353.574 | F24: 9518061.203 | G24: 686945.2671 | H24: 10205006.47
A25: 2015 | B25: Q1 | C25: 2232684.194 | D25: 2248142.621 | E25: 7406622.46 | F25: 11887449.28 | G25: 872769.2482 | H25: 12760218.52
B26: Q2 | C26: 2494182.978 | D26: 2286462.029 | E26: 7670176.298 | F26: 12450821.3 | G26: 913441.5438 | H26: 13364262.85
B27: Q3 | C27: 5194441.537 | D27: 1752072.619 | E27: 5871790.554 | F27: 12818304.71 | G27: 938080.8255 | H27: 13756385.54
B28: Q4 | C28: 1891658.913 | D28: 1617868.591 | E28: 6622237.113 | F28: 10131764.62 | G28: 733842.3674 | H28: 10865606.98
A29: 2016 | B29: Q1 | C29: 2352276.495 | D29: 2953583.265 | E29: 7165123.577 | F29: 12470983.34 | G29: 917685.1452 | H29: 13388668.48
B30: Q2 | C30: 2485750.48 | D30: 3008790.122 | E30: 6959237.503 | F30: 12453778.1 | G30: 915005.5008 | H30: 13368783.61
B31: Q3 | C31: 4959778.984 | D31: 1755408.346 | E31: 6111031.177 | F31: 12826218.51 | G31: 940579.4708 | H31: 13766797.98
B32: Q4 | C32: 1987452.751 | D32: 1706018.814 | E32: 6761943.22 | F32: 10455414.79 | G32: 752995.5735 | H32: 11208410.36
A33: 2017 | B33: Q1 | C33: 2575499.536 | D33: 2118576.545 | E33: 6779213.602 | F33: 11473289.68 | G33: 840436.8355 | H33: 12313726.52
B34: Q2 | C34: 2507192.339 | D34: 3111998.095 | E34: 7724548.397 | F34: 13343738.83 | G34: 983576.5853 | H34: 14327315.42
B35: Q3 | C35: 4150618.004 | D35: 1839679.804 | E35: 7773413.962 | F35: 13763711.77 | G35: 1008922.738 | H35: 14772634.51
B36: Q4 | C36: 2035854.026 | D36: 2019212.129 | E36: 7887728.435 | F36: 11942794.59 | G36: 871054.4753 | H36: 12813849.06
A37: 2018 | B37: Q1 | C37: 2760606.082 | D37: 2133607.475 | E37: 7914698.775 | F37: 12808912.33 | G37: 934255.667 | H37: 13743168
B38: Q2 | C38: 2665231.134 | D38: 3509993.516 | E38: 7852169.223 | F38: 14027393.87 | G38: 1034203.451 | H38: 15061597.32
B39: Q3 | C39: 4128024.208 | D39: 2057364.066 | E39: 8609044.49 | F39: 14794432.76 | G39: 1090492.34 | H39: 15884925.11
B40: Q4 | C40: 2131275.515 | D40: 1572840.556 | E40: 8841071.075 | F40: 12545187.15 | G40: 915949.9731 | H40: 13461137.12
A41: 2019 | B41: Q1 | C41: 3004214.215 | D41: 2363351.698 | E41: 9384896.938 | F41: 14752462.85 | G41: 1065741.16 | H41: 15818204.01
B42: Q2 | C42: 2794074.707 | D42: 3721454.565 | E42: 9413375.888 | F42: 15928905.16 | G42: 1170318.989 | H42: 17099224.15
B43: Q3 | C43: 3656291.152 | D43: 2518898.27 | E43: 8031595.315 | F43: 14206784.74 | G43: 1039989.442 | H43: 15246774.18
B44: Q4 | C44: 2217469.203 | D44: 2039970.199 | E44: 8429028.738 | F44: 12686468.14 | G44: 918332.3711 | H44: 13604800.51
A45: 2020 | B45: Q1 | C45: 3286854.806 | D45: 2887856.408 | E45: 9929453.426 | F45: 16104164.64 | G45: 1179560.535 | H45: 17283725.17
B46: Q2 | C46: 3103787.235 | D46: 3833960.102 | E46: 8239312.507 | F46: 15177059.84 | G46: 1102768.471 | H46: 16279828.31
B47: Q3 | C47: 4069954.911 | D47: 2470441.196 | E47: 7962707.328 | F47: 14503103.44 | G47: 1037668.831 | H47: 15540772.27
B48: Q4 | C48: 2447613.2 | D48: 2326428.144 | E48: 7377654.353 | F48: 12151695.7 | G48: 878337.2494 | H48: 13030032.95
A49: 2021 | B49: Q1 | C49: 3689788.645 | D49: 2822101.278 | E49: 8845855.204 | F49: 15357745.13 | G49: 1125342.534 | H49: 16483087.66
B50: Q2 | C50: 3633296.325 | D50: 3521881.63 | E50: 8614986.012 | F50: 15770163.97 | G50: 1156173.403 | H50: 16926337.37
B51: Q3 | C51: 4585922.059 | D51: 3030502.301 | E51: 8220356.254 | F51: 15836780.61 | G51: 1161724.32 | H51: 16998504.93
B52: Q4 | C52: 2764858.628 | D52: 2475933.54 | E52: 8734758.99 | F52: 13975551.16 | G52: 1016640.08 | H52: 14992191.24
A53: 2022 | B53: Q1 | C53: 4027160.092 | D53: 2666461.748 | E53: 9155168.928 | F53: 15848790.77 | G53: 1210759.504 | H53: 17059550.27
B54: Q2 | C54: 3812248.569 | D54: 3431459.209 | E54: 8897256.405 | F54: 16140964.18 | G54: 1220906.279 | H54: 17361870.46
B55: Q3 | C55: 4652148.286 | D55: 2986302.438 | E55: 8353682.55 | F55: 15992133.27 | G55: 1216192.632 | H55: 17208325.91
B56: Q4 | C56: 3246161.963 | D56: 2601156.47 | E56: 8726417.381 | F56: 14573735.81 | G56: 1092616.95 | H56: 15666352.76
A57: 2023 | B57: Q1 | C57: 4202092.907 | D57: 3153212.953 | E57: 9306115.578 | F57: 16661421.44 | G57: 1273186.668 | H57: 17934608.11
B58: Q2 | C58: 3679510.508 | D58: 4329033.85 | E58: 8731031.598 | F58: 16739575.96 | G58: 1275073.395 | H58: 18014649.35
B59: Q3 | C59: 5205513.26 | D59: 2697438.794 | E59: 8934387.487 | F59: 16837339.54 | G59: 1275428.15 | H59: 18112767.69
B60: Q4 | C60: 3377406.405 | D60: 2885623.973 | E60: 9041523.805 | F60: 15304554.18 | G60: 1139986.278 | H60: 16444540.46
A61: 2024* | B61: Q1 | C61: 3457908.756 | D61: 3793969.46 | E61: 11251249.34 | F61: 18503127.56 | G61: 1402178.217 | H61: 19905305.77
B62: Q2 | C62: 3563756.102 | D62: 3633413.947 | E62: 10610939.33 | F62: 17808109.38 | G62: 1343226.058 | H62: 19151335.43
B63: Q3 | C63: 5087467.557 | D63: 3218867.871 | E63: 9467806.625 | F63: 17774142.05 | G63: 1342841.14 | H63: 19116983.19
B64: Q4 | C64: 3704411.089 | D64: 3511886.007 | E64: 9732024.414 | F64: 16948321.51 | G64: 1260406.12 | H64: 18208727.63
A65: 2025 | B65: Q1 | C65: 3991467.043 | D65: 3533203.206 | E65: 12186784.08 | F65: 19711454.33 | G65: 1506984.668 | H65: 21218438.99
A66: * preliminary

Sheet T.3
A1: Table 3.Quarterly Gross Value Added at Constant Prices (Main Economic Activities)
A2: Real Growth Rates, comparison with corresponding quarter of previous year
A4: Non-Seasonally Adjusted
H5: (in %)
A6: ISIC Rev.4 | C6: Gross value added by industry | F6: Gross value added | G6: Net Taxes | H6: Gross domestic product
C7: Agriculture, forestry and fishing | D7: Industry | E7: Services
C9: 1 | D9: 2 | E9: 3 | F9: 4=1+2+3 | G9: 5 | H9: 6=4+5
A11: 2014 | C11: -12.38462054 | D11: 9.573101171 | E11: 1.359108556 | F11: -1.458116043 | G11: -0.7072740519 | H11: -1.40738252
A12: 2015 | C12: 3.950153127 | D12: 22.61226539 | E12: -0.2432045025 | F12: 4.047281461 | G12: 4.205879665 | H12: 4.058073854
A13: 2016 | C13: -0.2345635182 | D13: 19.2200123 | E13: -2.080064409 | F13: 1.941397876 | G13: 1.970186979 | H13: 1.943359718
A14: 2017 | C14: -4.379155505 | D14: -3.54776157 | E14: 11.73289461 | F14: 4.806706976 | G14: 5.040032705 | H14: 4.822611213
A15: 2018 | C15: 3.691250193 | D15: 2.028051246 | E15: 10.11798058 | F15: 7.229088883 | G15: 7.314024893 | H15: 7.234890405
A16: 2019 | C16: -0.1120026252 | D16: 14.77138056 | E16: 6.147196696 | F16: 6.273441027 | G16: 5.521659703 | H16: 6.222052994
A17: 2020 | C17: 10.59077839 | D17: 8.220949434 | E17: -4.9626319 | F17: 0.6277118639 | G17: 0.09424806679 | H17: 0.5914873691
A18: 2021 | C18: 13.67854633 | D18: 2.879954389 | E18: 2.706214426 | F18: 5.185404629 | G18: 6.229737381 | H18: 5.255968789
A19: 2022* | C19: 3.645962086 | D19: 3.066633105 | E19: 6.024327616 | F19: 4.876486161 | G19: 5.296807668 | H19: 4.905149466
A20: 2023* | C20: 3.311370325 | D20: 10.92630313 | E20: 3.197302692 | F20: 4.70148882 | G20: 4.478315406 | H20: 4.686212966
A22: 2014 | B22: Q1 | C22: -6.905630574 | D22: 19.43279256 | E22: 5.509308406 | F22: 4.58325179 | G22: 7.352176246 | H22: 4.767471904
B23: Q2 | C23: -10.01482073 | D23: 12.74038931 | E23: -3.963101292 | F23: -2.926982875 | G23: 7.516802558 | H23: -2.282381045
B24: Q3 | C24: -16.36506188 | D24: 19.0751013 | E24: 6.829339891 | F24: -2.128607931 | G24: -2.7045317 | H24: -2.16832557
B25: Q4 | C25: -9.878790448 | D25: -12.12132259 | E25: -2.079213787 | F25: -5.077961007 | G25: -13.76732721 | H25: -5.717484152
A26: 2015 | B26: Q1 | C26: 3.330855767 | D26: 36.82242382 | E26: 4.24303858 | F26: 8.969472964 | G26: 9.355523248 | H26: 8.995791044
B27: Q2 | C27: 4.287492051 | D27: 19.15587812 | E27: 5.708723822 | F27: 7.645738642 | G27: 8.392728941 | H27: 7.696467142
B28: Q3 | C28: 3.187681835 | D28: 9.516765491 | E28: -13.92340187 | F28: -4.734749653 | G28: -5.320558984 | H28: -4.774927608
B29: Q4 | C29: 6.40810127 | D29: 25.90729943 | E29: 2.585195941 | F29: 6.447777562 | G29: 6.826904929 | H29: 6.473298345
A30: 2016 | B30: Q1 | C30: 5.356436047 | D30: 31.37882076 | E30: -3.260580431 | F30: 4.908824834 | G30: 5.146365677 | H30: 4.925072074
B31: Q2 | C31: -0.3380866112 | D31: 31.59151931 | E31: -9.268871627 | F31: 0.02374783014 | G31: 0.1712158817 | H31: 0.03382720722
B32: Q3 | C32: -4.517570388 | D32: 0.1903874646 | E32: 4.074406615 | F32: 0.06173824794 | G32: 0.2663571497 | H32: 0.07569170016
B33: Q4 | C33: 5.064012189 | D33: 5.448540375 | E33: 2.109651228 | F33: 3.19441065 | G33: 2.609989143 | H33: 3.154939936
A34: 2017 | B34: Q1 | C34: 9.489659976 | D34: -28.27097274 | E34: -5.385950027 | F34: -8.000120174 | G34: -8.417735659 | H34: -8.028744344
B35: Q2 | C35: 0.86259096 | D35: 3.430215092 | E35: 10.99705094 | F35: 7.146110343 | G35: 7.494062543 | H35: 7.169925388
B36: Q3 | C36: -16.31445641 | D36: 4.800675502 | E36: 27.20298321 | F36: 7.309194541 | G36: 7.266081138 | H36: 7.306248934
B37: Q4 | C37: 2.435342151 | D37: 18.35813952 | E37: 16.64884159 | F37: 14.22592824 | G37: 15.67856517 | H37: 14.32351827
A38: 2018 | B38: Q1 | C38: 7.187209426 | D38: 0.7094825088 | E38: 16.74951166 | F38: 11.64114814 | G38: 11.16310322 | H38: 11.6085206
B39: Q2 | C39: 6.303417285 | D39: 12.78906377 | E39: 1.65214612 | F39: 5.123414445 | G39: 5.147221546 | H39: 5.125048813
B40: Q3 | C40: -0.5443477432 | D40: 11.83272556 | E40: 10.74985242 | F40: 7.488684831 | G40: 8.084821436 | H40: 7.529399016
B41: Q4 | C41: 4.687049658 | D41: -22.10622483 | E41: 12.08640292 | F41: 5.043983229 | G41: 5.15415501 | H41: 5.051472441
A42: 2019 | B42: Q1 | C42: 8.824443855 | D42: 10.76787673 | E42: 18.5755416 | F42: 15.17342355 | G42: 14.07382344 | H42: 15.09867312
B43: Q2 | C43: 4.834236394 | D43: 6.024542453 | E43: 19.88248878 | F43: 13.55569898 | G43: 13.16138882 | H43: 13.5286237
B44: Q3 | C44: -11.42757484 | D44: 22.43327816 | E44: -6.707471143 | F44: -3.972088935 | G44: -4.63120152 | H44: -4.017336692
B45: Q4 | C45: 4.044230224 | D45: 29.69974559 | E45: -4.660547725 | F45: 1.126176865 | G45: 0.2601013151 | H45: 1.067245597
A46: 2020 | B46: Q1 | C46: 9.40813703 | D46: 22.19325673 | E46: 5.802477018 | F46: 9.16255002 | G46: 10.67983288 | H46: 9.264775961
B47: Q2 | C47: 11.0846187 | D47: 3.023160293 | E47: -12.47228831 | F47: -4.720006233 | G47: -5.771974887 | H47: -4.792005926
B48: Q3 | C48: 11.31375324 | D48: -1.923740816 | E48: -0.8577123761 | F48: 2.08575482 | G48: -0.2231379488 | H48: 1.928264188
B49: Q4 | C49: 10.37867837 | D49: 14.04226127 | E49: -12.47325662 | F49: -4.215298042 | G49: -4.355190223 | H49: -4.22474085
A50: 2021 | B50: Q1 | C50: 12.25894856 | D50: -2.276952911 | E50: -10.91296948 | F50: -4.634947106 | G50: -4.596457712 | H50: -4.632320325
B51: Q2 | C51: 17.06009628 | D51: -8.139846625 | E51: 4.559524896 | F51: 3.907898695 | G51: 4.84280552 | H51: 3.971227727
B52: Q3 | C52: 12.67746594 | D52: 22.67048922 | E52: 3.235695039 | F52: 9.195805467 | G52: 11.95521008 | H52: 9.380052948
B53: Q4 | C53: 12.96142007 | D53: 6.426392172 | E53: 18.39479829 | F53: 15.00906134 | G53: 15.74598259 | H53: 15.05873623
A54: 2022 | B54: Q1 | C54: 9.143381357 | D54: -5.515022809 | E54: 3.496707972 | F54: 3.197381113 | G54: 7.590308564 | H54: 3.497297501
B55: Q2 | C55: 4.925341293 | D55: -2.56744634 | E55: 3.276504368 | F55: 2.35127686 | G55: 5.59888995 | H55: 2.573108896
B56: Q3 | C56: 1.444120203 | D56: -1.45849958 | E56: 1.621904101 | F56: 0.9809611099 | G56: 4.68857467 | H56: 1.234349561
B57: Q4 | C57: 17.40788227 | D57: 5.057604616 | E57: -0.09549902149 | F57: 4.280222282 | G57: 7.473330192 | H57: 4.496751102
A58: 2023 | B58: Q1 | C58: 4.343825686 | D58: 18.25457293 | E58: 1.648758759 | F58: 5.127398554 | G58: 5.156033374 | H58: 5.12943084
B59: Q2 | C59: -3.481883686 | D59: 26.15722895 | E59: -1.868270393 | F59: 3.708649412 | G59: 4.436631739 | H59: 3.759841949
B60: Q3 | C60: 11.89482666 | D60: -9.67295343 | E60: 6.951484374 | F60: 5.285137717 | G60: 4.870570364 | H60: 5.255838309
B61: Q4 | C61: 4.043065091 | D61: 10.93619347 | E61: 3.610948347 | F61: 5.014626164 | G61: 4.335401165 | H61: 4.967255039
A62: 2024* | B62: Q1 | C62: -16.41935282 | D62: 20.78027914 | E62: 18.53683319 | F62: 10.33335402 | G62: 9.627145005 | H62: 10.28330918
B63: Q2 | C63: -0.6315065144 | D63: -14.07155153 | E63: 17.99929305 | F63: 5.955255676 | G63: 4.662197794 | H63: 5.863522907
B64: Q3 | C64: 1.620096691 | D64: 20.28414811 | E64: 2.872983264 | F64: 5.260834923 | G64: 4.472384944 | H64: 5.205063136
B65: Q4 | C65: 14.75046869 | D65: 23.72750831 | E65: 3.768898649 | F65: 9.732025896 | G65: 9.644709666 | H65: 9.725977396
A66: 2025 | B66: Q1 | C66: 15.43008575 | D66: -6.873177456 | E66: 8.314940927 | F66: 6.530392039 | G66: 7.474545692 | H66: 6.596900522
A68: * preliminary

Sheet T.1.1
A1: Table 1.1. Quarterly Gross Value Added at Current Prices
A3: Non-Seasonally Adjusted
O4: (D'000)
A5: ISIC Rev.4 | C5: Gross value added by industry | N5: Gross value added | O5: Net Taxes | P5: Gross domestic product
C6: Agriculture, forestry and fishing | D6: Mining and quarrying; manufacturing; electricity, gas, steam and air conditioning supply; water supply; sewerage, waste management and remediation activities | F6: Construction | G6: Wholesale and retail trade; repair of motor vehicles and motorcycles; transportation and storage; accommodation and food service activities | H6: Information and communication | I6: Financial and insurance activities | J6: Real estate activities | K6: Professional, scientific and technical activities; administrative and support service activities | L6: Public administration and defence; compulsory social security; education; human health and social work activities | M6: Arts, entertainment and recreation, repair of household goods and other services
D7: Total | E7: of which: Manufacturing
C8: 1 | D8: 2 | E8: 2a | F8: 3 | G8: 4 | H8: 5 | I8: 6 | J8: 7 | K8: 8 | L8: 9 | M8: 10 | N8: 11=1+2+..10 | O8: 12 | P8: 13=11+12
A10: 2013 | C10: 12970404.91 | D10: 3695979.351 | E10: 2775502.629 | F10: 2187565.298 | G10: 18219720.84 | H10: 1765095.128 | I10: 1193253.259 | J10: 1119592.412 | K10: 699457.0286 | L10: 3345296.964 | M10: 925033.5267 | N10: 46121398.71 | O10: 3342197.869 | P10: 49463596.58
A11: 2014 | C11: 11523423.63 | D11: 4470265.702 | E11: 3341134.895 | F11: 2310144.089 | G11: 19628672.57 | H11: 1683136.52 | I11: 1346759.348 | J11: 1149392.98 | K11: 785330.923 | L11: 3143244.587 | M11: 1221656.785 | N11: 47262027.14 | O11: 4047052.197 | P11: 51309079.34
A12: 2015 | C12: 13010201.24 | D12: 5002306.529 | E12: 3719460.591 | F12: 5040510.231 | G12: 20541262.73 | H12: 1858931.322 | I12: 1269761.722 | J12: 1284650.308 | K12: 824551.0774 | L12: 3331569.392 | M12: 1286861.794 | N12: 53450606.34 | O12: 5130455.265 | P12: 58581061.6
A13: 2016 | C13: 14076528.86 | D13: 4953545.106 | E13: 3596987.455 | F13: 8526870.495 | G13: 21317294.17 | H13: 1821550.409 | I13: 1164430.371 | J13: 1337181.693 | K13: 891245.1909 | L13: 3502017.136 | M13: 1387305.739 | N13: 58977969.17 | O13: 5411970.103 | P13: 64389939.27
A14: 2017 | C14: 14731188.51 | D14: 4511126.095 | E14: 3134859.327 | F14: 8039243.804 | G14: 26352222.88 | H14: 2320360.266 | I14: 1417064.822 | J14: 1424663.272 | K14: 966462.1667 | L14: 3651122.602 | M14: 1341818.527 | N14: 64755272.95 | O14: 5386915.297 | P14: 70142188.25
A15: 2018 | C15: 15985864.55 | D15: 5434047.965 | E15: 3423342.929 | F15: 8491462.544 | G15: 31372392.52 | H15: 2548622.354 | I15: 2449718.877 | J15: 1504918.403 | K15: 944307.2201 | L15: 4011861.002 | M15: 1335954.131 | N15: 74079149.56 | O15: 6366650.379 | P15: 80445799.94
A16: 2019 | C16: 18162426.27 | D16: 5809553.478 | E16: 3438520.583 | F16: 9881970.411 | G16: 35138934.08 | H16: 2906126.945 | I16: 2759729.668 | J16: 1598996.018 | K16: 976039.7579 | L16: 4950781.575 | M16: 1400975.588 | N16: 83585533.79 | O16: 7208230.661 | P16: 90793764.45
A17: 2020 | C17: 19826989.53 | D17: 5055085.587 | E17: 2439066.111 | F17: 10674426.84 | G17: 34257632.35 | H17: 3168308.291 | I17: 3344417.322 | J17: 1917749.355 | K17: 698054.3652 | L17: 5813094.343 | M17: 1155635.194 | N17: 85911393.17 | O17: 7418415.957 | P17: 93329809.13
A18: 2021 | C18: 24873070.98 | D18: 4718038.347 | E18: 2006439.254 | F18: 12035542.87 | G18: 38460095.07 | H18: 3161666.542 | I18: 3917655.435 | J18: 1988007.209 | K18: 749909.9407 | L18: 6822225.063 | M18: 1223297.661 | N18: 97949509.12 | O18: 7537528.41 | P18: 105487037.5
A19: 2022* | C19: 29651805.67 | D19: 5308374.543 | E19: 2345125.996 | F19: 13255149.13 | G19: 46033562.46 | H19: 3759801.358 | I19: 4647898.777 | J19: 2478493.091 | K19: 812379.9371 | L19: 8174676.986 | M19: 1266260.776 | N19: 115388402.7 | O19: 7175660.488 | P19: 122564063.2
A20: 2023* | C20: 34364342.65 | D20: 6811299.313 | E20: 2212048.342 | F20: 17627670.22 | G20: 52319953.54 | H20: 4795826.438 | I20: 5006160.224 | J20: 2870555.168 | K20: 1121021.22 | L20: 11008000.84 | M20: 1574895.031 | N20: 137499724.6 | O20: 9509412.15 | P20: 147009136.8
A22: 2013 | B22: Q1 | C22: 2320993.142 | D22: 833529.9616 | E22: 609444.2212 | F22: 542231.0339 | G22: 4673158.604 | H22: 340975.6903 | I22: 251070.5706 | J22: 282950.4919 | K22: 159967.3908 | L22: 752730.1793 | M22: 273290.6146 | N22: 10430897.68 | O22: 743443.3135 | P22: 11174340.99
B23: Q2 | C23: 2657817.162 | D23: 896678.1994 | E23: 668476.2327 | F23: 805358.7805 | G23: 5311387.367 | H23: 411916.0026 | I23: 306832.4534 | J23: 278360.5158 | K23: 163701.3294 | L23: 871451.7765 | M23: 211731.8984 | N23: 11915235.48 | O23: 783798.2128 | P23: 12699033.7
B24: Q3 | C24: 6018985.08 | D24: 925022.628 | E24: 701477.5633 | F24: 418517.1661 | G24: 4013037.946 | H24: 513653.7664 | I24: 316045.219 | J24: 281659.4902 | K24: 189797.1241 | L24: 883268.5633 | M24: 188037.9968 | N24: 13748024.98 | O24: 1018338.026 | P24: 14766363.01
B25: Q4 | C25: 1972609.523 | D25: 1040748.562 | E25: 796104.6114 | F25: 421458.317 | G25: 4222136.921 | H25: 498549.6687 | I25: 319305.016 | J25: 276621.9144 | K25: 185991.1842 | L25: 837846.4453 | M25: 251973.0169 | N25: 10027240.57 | O25: 796618.3175 | P25: 10823858.89
A26: 2014 | B26: Q1 | C26: 2249124.115 | D26: 961175.9888 | E26: 690294.7513 | F26: 641264.0973 | G26: 5118270.01 | H26: 453146.0809 | I26: 309989.4492 | J26: 281523.7785 | K26: 193050.4622 | L26: 706702.0016 | M26: 353335.385 | N26: 11267581.37 | O26: 972255.2289 | P26: 12239836.6
B27: Q2 | C27: 2417183.813 | D27: 1196098.482 | E27: 911796.1624 | F27: 765623.3179 | G27: 5234286.545 | H27: 418075.156 | I27: 352826.649 | J27: 282217.4122 | K27: 187972.1634 | L27: 822152.5054 | M27: 270305.6047 | N27: 11946741.65 | O27: 1013092.531 | P27: 12959834.18
B28: Q3 | C28: 4948596.055 | D28: 1165601.436 | E28: 888516.5681 | F28: 585787.197 | G28: 4824707.381 | H28: 418834.4617 | I28: 307791.807 | J28: 287448.9471 | K28: 209718.2468 | L28: 829552.6098 | M28: 250407.736 | N28: 13828445.88 | O28: 1133112.304 | P28: 14961558.18
B29: Q4 | C29: 1908519.65 | D29: 1147389.795 | E29: 850527.4136 | F29: 317469.4773 | G29: 4451408.638 | H29: 393080.8217 | I29: 376151.4432 | J29: 298202.8418 | K29: 194590.0506 | L29: 784837.4704 | M29: 347608.059 | N29: 10219258.25 | O29: 928592.1329 | P29: 11147850.38
A30: 2015 | B30: Q1 | C30: 2556959.277 | D30: 1251471.741 | E30: 954532.4038 | F30: 1480179.323 | G30: 5512783.68 | H30: 459811.7751 | I30: 325269.7678 | J30: 319903.4817 | K30: 206018.774 | L30: 779448.5528 | M30: 379843.2421 | N30: 13271689.61 | O30: 1206125.783 | P30: 14477815.4
B31: Q2 | C31: 2775286.13 | D31: 1131431.055 | E31: 808436.241 | F31: 1775728.161 | G31: 5966818.542 | H31: 497402.8205 | I31: 347829.2814 | J31: 333308.8916 | K31: 198902.5574 | L31: 830246.6544 | M31: 279442.9045 | N31: 14136397 | O31: 1299797.296 | P31: 15436194.29
B32: Q3 | C32: 5491640.789 | D32: 1174949.936 | E32: 846693.844 | F32: 1116440.341 | G32: 4067101.056 | H32: 469779.7829 | I32: 309967.8684 | J32: 317793.7343 | K32: 206554.1062 | L32: 895845.9266 | M32: 262314.7787 | N32: 14312388.32 | O32: 1386285.289 | P32: 15698673.61
B33: Q4 | C33: 2186315.041 | D33: 1444453.797 | E33: 1109798.102 | F33: 668162.4052 | G33: 4994559.447 | H33: 431936.9439 | I33: 286694.8046 | J33: 313644.2 | K33: 213075.6399 | L33: 826028.258 | M33: 365260.8683 | N33: 11730131.4 | O33: 1238246.897 | P33: 12968378.3
A34: 2016 | B34: Q1 | C34: 2970700.002 | D34: 1551868.896 | E34: 1209184.695 | F34: 2692306.305 | G34: 5675138.762 | H34: 414960.2746 | I34: 272557.9773 | J34: 340256.5997 | K34: 225192.8072 | L34: 815162.8047 | M34: 424843.1408 | N34: 15382987.57 | O34: 1353917.756 | P34: 16736905.33
B35: Q2 | C35: 3013596.891 | D35: 1172857.031 | E35: 835936.5021 | F35: 3275659.918 | G35: 5652900.454 | H35: 429254.7303 | I35: 281895.8336 | J35: 332536.6534 | K35: 212450.1607 | L35: 840426.2943 | M35: 305366.38 | N35: 15516944.35 | O35: 1404813.29 | P35: 16921757.64
B36: Q3 | C36: 5609602.249 | D36: 1169480.699 | E36: 837117.1682 | F36: 1281368.062 | G36: 4674442.808 | H36: 465987.5662 | I36: 290866.971 | J36: 327608.4959 | K36: 226281.3965 | L36: 901352.4677 | M36: 268405.0288 | N36: 15215395.74 | O36: 1372300.444 | P36: 16587696.19
B37: Q4 | C37: 2482629.713 | D37: 1059338.48 | E37: 714749.0897 | F37: 1277536.21 | G37: 5314812.148 | H37: 511347.838 | I37: 319109.589 | J37: 336779.9441 | K37: 227320.8265 | L37: 945075.5695 | M37: 388691.1889 | N37: 12862641.51 | O37: 1280938.613 | P37: 14143580.12
A38: 2017 | B38: Q1 | C38: 3483170.367 | D38: 1059182.087 | E38: 739319.4804 | F38: 1879625.089 | G38: 5577492.916 | H38: 508170.916 | I38: 303899.9918 | J38: 353396.421 | K38: 228575.9705 | L38: 832505.8684 | M38: 392846.9366 | N38: 14618866.56 | O38: 1098753.414 | P38: 15717619.98
B39: Q2 | C39: 3344468.912 | D39: 1061700.53 | E39: 718621.7285 | F39: 3292604.781 | G39: 6796849.038 | H39: 615482.055 | I39: 352522.8403 | J39: 363301.3341 | K39: 246387.2842 | L39: 880977.4785 | M39: 292237.4754 | N39: 17246531.73 | O39: 1370768.837 | P39: 18617300.57
B40: Q3 | C40: 5301857.868 | D40: 1081502.744 | E40: 743557.8149 | F40: 1396799.131 | G40: 6946820.976 | H40: 578310.5181 | I40: 387200.9243 | J40: 358029.1646 | K40: 246070.1928 | L40: 998198.3125 | M40: 248774.5949 | N40: 17543564.43 | O40: 1421368.637 | P40: 18964933.06
B41: Q4 | C41: 2601691.367 | D41: 1308740.734 | E41: 933360.303 | F41: 1470214.803 | G41: 7031059.95 | H41: 618396.7771 | I41: 373441.0659 | J41: 349936.3524 | K41: 245428.7191 | L41: 939440.9425 | M41: 407959.5204 | N41: 15346310.23 | O41: 1496024.41 | P41: 16842334.64
A42: 2018 | B42: Q1 | C42: 3661779.193 | D42: 1414740.165 | E42: 1006199.776 | F42: 1650743.718 | G42: 6969576.274 | H42: 597941.7546 | I42: 580547.1211 | J42: 386471.8095 | K42: 255052.0543 | L42: 1019929.776 | M42: 419392.2428 | N42: 16956174.11 | O42: 1619136.383 | P42: 18575310.49
B43: Q2 | C43: 3679070.411 | D43: 1406606.282 | E43: 925316.4965 | F43: 3923154.192 | G43: 7240922.399 | H43: 639595.0558 | I43: 605528.8417 | J43: 367658.9178 | K43: 254799.2136 | L43: 956119.671 | M43: 303495.8196 | N43: 19376950.8 | O43: 1614201.204 | P43: 20991152.01
B44: Q3 | C44: 5839987.897 | D44: 1309289.542 | E44: 758060.6518 | F44: 1830603.527 | G44: 8434980.142 | H44: 643093.0234 | I44: 642808.6718 | J44: 367160.5632 | K44: 234832.132 | L44: 1022424.889 | M44: 245296.02 | N44: 20570476.41 | O44: 1571027.041 | P44: 22141503.45
B45: Q4 | C45: 2805027.047 | D45: 1303411.976 | E45: 733766.0054 | F45: 1086961.106 | G45: 8726913.701 | H45: 667992.5203 | I45: 620834.2424 | J45: 383627.1126 | K45: 199623.8203 | L45: 1013386.666 | M45: 367770.0487 | N45: 17175548.24 | O45: 1562285.752 | P45: 18737833.99
A46: 2019 | B46: Q1 | C46: 4423200.805 | D46: 1522476.114 | E46: 971146.5815 | F46: 2057922.095 | G46: 9026276.691 | H46: 678085.0721 | I46: 686143.2484 | J46: 379999.2754 | K46: 252838.6876 | L46: 1380764.405 | M46: 447907.6786 | N46: 20855614.07 | O46: 1721472.92 | P46: 22577086.99
B47: Q2 | C47: 4579277.772 | D47: 1440176.96 | E47: 846404.6352 | F47: 3969644.214 | G47: 9686121.049 | H47: 735631.7025 | I47: 631209.1845 | J47: 397310.7623 | K47: 271922.3864 | L47: 1199242.998 | M47: 306510.5776 | N47: 23217047.61 | O47: 1890072.21 | P47: 25107119.82
B48: Q3 | C48: 5906521.626 | D48: 1368567.06 | E48: 746677.8876 | F48: 2290526.395 | G48: 7993196.94 | H48: 748800.9156 | I48: 629816.5697 | J48: 410140.4867 | K48: 242836.2797 | L48: 1151942.43 | M48: 258797.1174 | N48: 21001145.82 | O48: 1820324.894 | P48: 22821470.71
B49: Q4 | C49: 3253426.07 | D49: 1478333.344 | E49: 874291.4788 | F49: 1563877.708 | G49: 8433339.395 | H49: 743609.2547 | I49: 812560.6653 | J49: 411545.4931 | K49: 208442.4042 | L49: 1218831.742 | M49: 387760.2139 | N49: 18511726.29 | O49: 1776360.636 | P49: 20288086.93
A50: 2020 | B50: Q1 | C50: 4966607.19 | D50: 1413175.673 | E50: 725439.1456 | F50: 2591686.088 | G50: 10842554.95 | H50: 799885.1016 | I50: 879522.4191 | J50: 463815.2321 | K50: 209216.6791 | L50: 1324616.241 | M50: 396723.3319 | N50: 23887802.91 | O50: 2077345.926 | P50: 25965148.84
B51: Q2 | C51: 4779193.01 | D51: 1312780.72 | E51: 617482.4099 | F51: 3913763.432 | G51: 8348504.346 | H51: 789468.1739 | I51: 751012.6173 | J51: 484696.9656 | K51: 150353.0369 | L51: 1406820.551 | M51: 250768.0754 | N51: 22187360.93 | O51: 1799002.436 | P51: 23986363.36
B52: Q3 | C52: 6369019.405 | D52: 1141776.067 | E52: 549061.5679 | F52: 2240488.318 | G52: 7846871.793 | H52: 760721.2057 | I52: 745381.7731 | J52: 486370.5088 | K52: 169367.2751 | L52: 1627747.254 | M52: 219511.9889 | N52: 21607255.59 | O52: 1750292.065 | P52: 23357547.65
B53: Q4 | C53: 3712169.923 | D53: 1187353.127 | E53: 547082.9872 | F53: 1928489 | G53: 7219701.252 | H53: 818233.8103 | I53: 968500.5122 | J53: 482866.6483 | K53: 169117.3742 | L53: 1453910.298 | M53: 288631.7975 | N53: 18228973.74 | O53: 1791775.529 | P53: 20020749.27
A54: 2021 | B54: Q1 | C54: 6100630.077 | D54: 1215519.116 | E54: 542384.6947 | F54: 2617201.911 | G54: 9730135.067 | H54: 784279.1609 | I54: 1026421.931 | J54: 483562.1908 | K54: 142946.9131 | L54: 1628009.054 | M54: 399019.9123 | N54: 24127725.33 | O54: 1863846.085 | P54: 25991571.42
B55: Q2 | C55: 6115343.935 | D55: 1156245.301 | E55: 427223.8149 | F55: 3812600.117 | G55: 9599604.113 | H55: 835636.9246 | I55: 896033.0739 | J55: 487097.7479 | K55: 171431.1235 | L55: 1669317.434 | M55: 258878.3986 | N55: 25002188.17 | O55: 2028304.616 | P55: 27030492.78
B56: Q3 | C56: 8057605.872 | D56: 1140133.756 | E56: 474180.8097 | F56: 3172973.733 | G56: 9114044.955 | H56: 774592.2843 | I56: 877084.0206 | J56: 488081.9643 | K56: 212361.2975 | L56: 1670724.814 | M56: 236261.522 | N56: 25743864.22 | O56: 2012655.571 | P56: 27756519.79
B57: Q4 | C57: 4599491.1 | D57: 1206140.173 | E57: 562649.9348 | F57: 2432767.105 | G57: 10016310.94 | H57: 767158.172 | I57: 1118116.41 | J57: 529265.3059 | K57: 223170.6066 | L57: 1854173.761 | M57: 329137.8278 | N57: 23075731.4 | O57: 1632722.138 | P57: 24708453.53
A58: 2022 | B58: Q1 | C58: 6955388.746 | D58: 1126925.132 | E58: 519251.3504 | F58: 2869369.063 | G58: 11366808.77 | H58: 743250.038 | I58: 1206325.171 | J58: 528915.3518 | K58: 192030.0427 | L58: 1773438.02 | M58: 446094.6175 | N58: 27208544.95 | O58: 1858709.037 | P58: 29067253.99
B59: Q2 | C59: 6839201.195 | D59: 1264773.547 | E59: 422563.5486 | F59: 3864810.04 | G59: 11638752.76 | H59: 708040.5077 | I59: 1187960.045 | J59: 494687.6288 | K59: 200289.0709 | L59: 1823637.687 | M59: 296904.0865 | N59: 28319056.57 | O59: 1605790.854 | P59: 29924847.42
B60: Q3 | C60: 8280754.83 | D60: 1080891.972 | E60: 343099.7169 | F60: 3274591.122 | G60: 10707822.95 | H60: 652242.8632 | I60: 1211955.408 | J60: 631529.9737 | K60: 234070.6785 | L60: 1960429.208 | M60: 278705.139 | N60: 28312994.15 | O60: 1673405.153 | P60: 29986399.3
B61: Q4 | C61: 5538893.599 | D61: 1338777.405 | E61: 422571.8103 | F61: 2766172.729 | G61: 11716842.74 | H61: 663558.1168 | I61: 1221463.981 | J61: 601915.2903 | K61: 244105.1638 | L61: 2017870.011 | M61: 410449.1509 | N61: 26520048.19 | O61: 2032081.234 | P61: 28552129.42
A62: 2023 | B62: Q1 | C62: 7918336.367 | D62: 1344255.549 | E62: 414917.922 | F62: 3765035.867 | G62: 12615694.57 | H62: 793711.3578 | I62: 1236877.509 | J62: 637600.9292 | K62: 262565.6617 | L62: 2197541.145 | M62: 571178.6825 | N62: 31342797.64 | O62: 2238250.841 | P62: 33581048.48
B63: Q2 | C63: 7904144.311 | D63: 1707094.766 | E63: 374599.8093 | F63: 6246433.306 | G63: 12283856.77 | H63: 849021.308 | I63: 1244969.033 | J63: 645823.9765 | K63: 277743.878 | L63: 2391242.263 | M63: 307806.4019 | N63: 33858136.02 | O63: 2487101.798 | P63: 36345237.81
B64: Q3 | C64: 9767605.805 | D64: 1584302.486 | E64: 333340.7231 | F64: 3304830.433 | G64: 12715349.94 | H64: 879486.4824 | I64: 1404668.031 | J64: 630487.8014 | K64: 313785.1593 | L64: 2597151.761 | M64: 449513.922 | N64: 33647181.82 | O64: 2366613.242 | P64: 36013795.06
B65: Q4 | C65: 7651642.047 | D65: 1700153.301 | E65: 335053.1052 | F65: 3438221.016 | G65: 13697996.56 | H65: 726714.4393 | I65: 1361440.932 | J65: 641459.5092 | K65: 376024.2139 | L65: 2827714.853 | M65: 488352.599 | N65: 32909719.47 | O65: 2408129.73 | P65: 35317849.2
A66: 2024 * | B66: Q1 | C66: 5921744.575 | D66: 1579181.155 | E66: 615898.1732 | F66: 4893422.628 | G66: 18666528.64 | H66: 1009292.371 | I66: 1509593.886 | J66: 670212.8564 | K66: 54604.01873 | L66: 2488148.192 | M66: 425282.522 | N66: 37218010.84 | O66: 3065958.319 | P66: 40283969.16
B67: Q2 | C67: 6613933.549 | D67: 1685685.362 | E67: 683705.0954 | F67: 4774980.951 | G67: 17633952.05 | H67: 1051956.945 | I67: 1507145.957 | J67: 670780.4918 | K67: 41530.63645 | L67: 2616828.353 | M67: 196745.5133 | N67: 36793539.81 | O67: 2875317.569 | P67: 39668857.37
B68: Q3 | C68: 11682684.28 | D68: 1687438.399 | E68: 741392.8769 | F68: 3920080.03 | G68: 15365720.86 | H68: 1117573.187 | I68: 1593149.192 | J68: 684758.9381 | K68: 48768.65372 | L68: 3044959.106 | M68: 393384.5053 | N68: 39538517.15 | O68: 2883686.56 | P68: 42422203.71
B69: Q4 | C69: 6136952.795 | D69: 1742249.067 | E69: 670866.098 | F69: 4512298.157 | G69: 16536721.04 | H69: 1098325.017 | I69: 1887048.015 | J69: 739307.0892 | K69: 70751.24033 | L69: 2195395.285 | M69: 572922.765 | N69: 35491970.47 | O69: 3299052.19 | P69: 38791022.66
A70: 2025 | B70: Q1 | C70: 3991467.043 | D70: 1327519.13 | E70: 463985.7636 | F70: 2205684.076 | G70: 8597675.262 | H70: 1260391.366 | I70: 740328.4621 | J70: 412072.6229 | K70: 181978.454 | L70: 804744.4066 | M70: 189593.5044 | N70: 19711454.33 | O70: 1506984.668 | P70: 21218438.99
A72: * preliminary

Sheet T.1.2
A1: Table 1.2. Quarterly Gross Value Added at Constant Prices by Economic Activities (2013 base year prices)
A3: Non-Seasonally Adjusted
O4: (D'000)
A5: ISIC Rev.4 | C5: Gross value added by industry | N5: Gross value added | O5: Net Taxes | P5: Gross domestic product
C6: Agriculture, forestry and fishing | D6: Mining and quarrying; manufacturing; electricity, gas, steam and air conditioning supply; water supply; sewerage, waste management and remediation activities | F6: Construction | G6: Wholesale and retail trade; repair of motor vehicles and motorcycles; transportation and storage; accommodation and food service activities | H6: Information and communication | I6: Financial and insurance activities | J6: Real estate activities | K6: Professional, scientific and technical activities; administrative and support service activities | L6: Public administration and defence; compulsory social security; education; human health and social work activities | M6: Arts, entertainment and recreation, repair of household goods and other services
D7: Total | E7: of which: Manufacturing
C8: 1 | D8: 2 | E8: 2a | F8: 3 | G8: 4 | H8: 5 | I8: 6 | J8: 7 | K8: 8 | L8: 9 | M8: 10 | N8: 11=1+2+..10 | O8: 12 | P8: 13=11+12
A10: 2014 | C10: 11364069.48 | D10: 4006920.687 | E10: 2865917.846 | F10: 2439861.644 | G10: 18525369.78 | H10: 1702702.314 | I10: 1248971.527 | J10: 1238844.387 | K10: 762705.5556 | L10: 2975337.719 | M10: 1184112.11 | N10: 45448895.2 | O10: 3318559.371 | P10: 48767454.57
A11: 2015 | C11: 11812967.62 | D11: 4129041.651 | E11: 2941519.749 | F11: 3775504.209 | G11: 18165203.26 | H11: 1864438.596 | I11: 1279264.823 | J11: 1251167.305 | K11: 781102.4803 | L11: 3028395.711 | M11: 1201254.249 | N11: 47288339.91 | O11: 3458133.985 | P11: 50746473.89
A12: 2016 | C12: 11785258.71 | D12: 3973680.45 | E12: 2734259.469 | F12: 5450120.097 | G12: 17663340.96 | H12: 1814468.391 | I12: 1184649.839 | J12: 1253129.684 | K12: 779144.8546 | L12: 3074446.88 | M12: 1228154.866 | N12: 48206394.73 | O12: 3526265.69 | P12: 51732660.42
A13: 2017 | C13: 11269163.9 | D13: 3717119.009 | E13: 2519157.817 | F13: 5372347.563 | G13: 20361877.56 | H13: 2321439.742 | I13: 1197948.775 | J13: 1286269.765 | K13: 757640.8705 | L13: 3116922.086 | M13: 1122805.601 | N13: 50523534.87 | O13: 3703990.634 | P13: 54227525.51
A14: 2018 | C14: 11685136.94 | D14: 3795575.483 | E14: 2488810.489 | F14: 5478230.13 | G14: 22880713.4 | H14: 2578979.628 | I14: 1352323.68 | J14: 1323576.038 | K14: 726566.6873 | L14: 3301981.869 | M14: 1052842.258 | N14: 54175926.12 | O14: 3974901.432 | P14: 58150827.55
A15: 2019 | C15: 11672049.28 | D15: 3850156.478 | E15: 2359970.976 | F15: 6793518.254 | G15: 23903038.37 | H15: 2929043.159 | I15: 1453637.152 | J15: 1345701.01 | K15: 704400.2417 | L15: 3891590.566 | M15: 1031486.378 | N15: 57574620.89 | O15: 4194381.962 | P15: 61769002.85
A16: 2020 | C16: 12908210.15 | D16: 3363436.809 | E16: 1660571.688 | F16: 8155249.042 | G16: 22155544.85 | H16: 2977269.946 | I16: 1478837.929 | J16: 1389894.945 | K16: 475323.811 | L16: 4202398.073 | M16: 829858.0647 | N16: 57936023.62 | O16: 4198335.086 | P16: 62134358.7
A17: 2021 | C17: 14673865.66 | D17: 2892402.425 | E17: 1192271.548 | F17: 8958016.324 | G17: 23116505.61 | H17: 3035453.589 | I17: 1675751.043 | J17: 1404183.732 | K17: 473885.1379 | L17: 3859151.567 | M17: 851025.7821 | N17: 60940240.87 | O17: 4459880.336 | P17: 65400121.2
A18: 2022* | C18: 15208869.24 | D18: 2970225.649 | E18: 1205692.928 | F18: 9243601.964 | G18: 24465902.24 | H18: 3587535.214 | I18: 1881322.736 | J18: 1453944.289 | K18: 470961.1645 | L18: 3807418.464 | M18: 822202.3199 | N18: 63911983.28 | O18: 4696111.62 | P18: 68608094.9
A19: 2023* | C19: 15712491.22 | D19: 3336530.603 | E19: 1097000.472 | F19: 10211816.84 | G19: 23818852.7 | H19: 4564649.848 | I19: 2190143.209 | J19: 1510911.303 | K19: 582999.9502 | L19: 4120561.227 | M19: 867841.1327 | N19: 66916798.03 | O19: 4906418.31 | P19: 71823216.34
A21: 2014 | B21: Q1 | C21: 2160713.93 | D21: 890374.4925 | E21: 613337.2091 | F21: 752735.2834 | G21: 4827958.73 | H21: 443715.7152 | I21: 308143.3826 | J21: 302650.6667 | K21: 181692.2136 | L21: 694221.5894 | M21: 346765.9799 | N21: 10908971.98 | O21: 798102.5762 | P21: 11707074.56
B22: Q2 | C22: 2391641.538 | D22: 1085956.224 | E22: 796001.6714 | F22: 832926.8931 | G22: 4997595.236 | H22: 423279.5256 | I22: 293921.139 | J22: 314458.1659 | K22: 182622.4269 | L22: 780745.8258 | M22: 263331.6076 | N22: 11566478.58 | O22: 842714.7769 | P22: 12409193.36
B23: Q3 | C23: 5033974.448 | D23: 1032249.33 | E23: 759163.911 | F23: 567572.041 | G23: 4565313.096 | H23: 429366.3177 | I23: 298247.3309 | J23: 306848.7909 | K23: 206105.9426 | L23: 774380.0038 | M23: 241326.1302 | N23: 13455383.43 | O23: 990796.7511 | P23: 14446180.18
B24: Q4 | C24: 1777739.562 | D24: 998340.6403 | E24: 697415.0548 | F24: 286627.4261 | G24: 4134502.717 | H24: 406340.7554 | I24: 348659.674 | J24: 314886.7632 | K24: 192284.9726 | L24: 725990.2995 | M24: 332688.3927 | N24: 9518061.203 | O24: 686945.2671 | P24: 10205006.47
A25: 2015 | B25: Q1 | C25: 2232684.194 | D25: 1044984.729 | E25: 767947.8442 | F25: 1203157.892 | G25: 5001367.37 | H25: 464921.4236 | I25: 344735.1759 | J25: 319489.1341 | K25: 200003.0935 | L25: 717055.5343 | M25: 359050.7285 | N25: 11887449.28 | O25: 872769.2482 | P25: 12760218.52
B26: Q2 | C26: 2494182.978 | D26: 949678.2439 | E26: 648738.7499 | F26: 1336783.785 | G26: 5321758.68 | H26: 499618.8727 | I26: 310092.3646 | J26: 324685.8228 | K26: 190615.2373 | L26: 759871.2338 | M26: 263534.0866 | N26: 12450821.3 | O26: 913441.5438 | P26: 13364262.85
B27: Q3 | C27: 5194441.537 | D27: 963539.1727 | E27: 663719.2736 | F27: 788533.4463 | G27: 3554720.619 | H27: 468746.6314 | I27: 291006.3627 | J27: 306929.355 | K27: 194104.1223 | L27: 812001.5506 | M27: 244281.9128 | N27: 12818304.71 | O27: 938080.8255 | P27: 13756385.54
B28: Q4 | C28: 1891658.913 | D28: 1170839.506 | E28: 861113.8812 | F28: 447029.0854 | G28: 4287356.591 | H28: 431151.6682 | I28: 333430.92 | J28: 300062.9933 | K28: 196380.0273 | L28: 739467.3923 | M28: 334387.5207 | N28: 10131764.62 | O28: 733842.3674 | P28: 10865606.98
A29: 2016 | B29: Q1 | C29: 2352276.495 | D29: 1227364.888 | E29: 917062.7118 | F29: 1726218.377 | G29: 4807418.666 | H29: 412506.7699 | I29: 310891.754 | J29: 320973.6704 | K29: 204352.2231 | L29: 725720.2868 | M29: 383260.2076 | N29: 12470983.34 | O29: 917685.1452 | P29: 13388668.48
B30: Q2 | C30: 2485750.48 | D30: 938899.9501 | E30: 634510.4973 | F30: 2069890.172 | G30: 4738708.95 | H30: 428495.6518 | I30: 273035.8059 | J30: 313893.6748 | K30: 189494.3731 | L30: 742811.2704 | M30: 272797.7775 | N30: 12453778.1 | O30: 915005.5008 | P30: 13368783.61
B31: Q3 | C31: 4959778.984 | D31: 938117.6465 | E31: 633830.7073 | F31: 817290.6991 | G31: 3842454.452 | H31: 464424.2157 | I31: 277797.7003 | J31: 306664.4207 | K31: 195899.3004 | L31: 787935.7005 | M31: 235855.3872 | N31: 12826218.51 | O31: 940579.4708 | P31: 13766797.98
B32: Q4 | C32: 1987452.751 | D32: 869297.9655 | E32: 548855.5531 | F32: 836720.8489 | G32: 4274758.895 | H32: 509041.7535 | I32: 322924.5791 | J32: 311597.918 | K32: 189398.9581 | L32: 817979.6223 | M32: 336241.4933 | N32: 10455414.79 | O32: 752995.5735 | P32: 11208410.36
A33: 2017 | B33: Q1 | C33: 2575499.536 | D33: 878398.2346 | E33: 583545.9663 | F33: 1240178.311 | G33: 4392821.095 | H33: 507515.9262 | I33: 321228.5998 | J33: 322180.3996 | K33: 183680.2597 | L33: 716711.829 | M33: 335075.4927 | N33: 11473289.68 | O33: 840436.8355 | P33: 12313726.52
B34: Q2 | C34: 2507192.339 | D34: 886687.1572 | E34: 576620.143 | F34: 2225310.938 | G34: 5289578.716 | H34: 615102.8306 | I34: 291566.495 | J34: 329863.8162 | K34: 194074.4361 | L34: 755144.8168 | M34: 249217.2861 | N34: 13343738.83 | O34: 983576.5853 | P34: 14327315.42
B35: Q3 | C35: 4150618.004 | D35: 902119.0902 | E35: 605293.7799 | F35: 937560.7139 | G35: 5343949.268 | H35: 580336.326 | I35: 276761.9654 | J35: 322657.2227 | K35: 190953.334 | L35: 850717.5671 | M35: 208038.278 | N35: 13763711.77 | O35: 1008922.738 | P35: 14772634.51
B36: Q4 | C36: 2035854.026 | D36: 1049914.527 | E36: 753697.9277 | F36: 969297.6013 | G36: 5335528.477 | H36: 618484.6595 | I36: 308391.7144 | J36: 311568.3261 | K36: 188932.8408 | L36: 794347.8734 | M36: 330474.544 | N36: 11942794.59 | O36: 871054.4753 | P36: 12813849.06
A37: 2018 | B37: Q1 | C37: 2760606.082 | D37: 1063024.239 | E37: 772592.8587 | F37: 1070583.236 | G37: 5219017.362 | H37: 604075.7938 | I37: 368118.3731 | J37: 340334.7628 | K37: 196431.0939 | L37: 851566.5888 | M37: 335154.8004 | N37: 12808912.33 | O37: 934255.667 | P37: 13743168
B38: Q2 | C38: 2665231.134 | D38: 998426.3275 | E38: 677535.6119 | F38: 2511567.188 | G38: 5341153.304 | H38: 646287.2318 | I38: 313022.3194 | J38: 323145.42 | K38: 196632.6757 | L38: 790837.0361 | M38: 241091.2367 | N38: 14027393.87 | O38: 1034203.451 | P38: 15061597.32
B39: Q3 | C39: 4128024.208 | D39: 875766.7745 | E39: 531270.322 | F39: 1181597.292 | G39: 6099645.906 | H39: 651633.7813 | I39: 323757.2662 | J39: 322719.6275 | K39: 180781.8768 | L39: 837446.0393 | M39: 193059.9935 | N39: 14794432.76 | O39: 1090492.34 | P39: 15884925.11
B40: Q4 | C40: 2131275.515 | D40: 858358.1419 | E40: 507411.6967 | F40: 714482.4137 | G40: 6220896.831 | H40: 676982.8213 | I40: 347425.7211 | J40: 337376.228 | K40: 152721.041 | L40: 822132.2046 | M40: 283536.2278 | N40: 12545187.15 | O40: 915949.9731 | P40: 13461137.12
A41: 2019 | B41: Q1 | C41: 3004214.215 | D41: 1025697.037 | E41: 675047.2752 | F41: 1337654.662 | G41: 6312330.847 | H41: 683254.6289 | I41: 406256.2916 | J41: 344530.7815 | K41: 189050.2527 | L41: 1112261.38 | M41: 337212.7567 | N41: 14752462.85 | O41: 1065741.16 | P41: 15818204.01
B42: Q2 | C42: 2794074.707 | D42: 956976.7623 | E42: 584883.1437 | F42: 2764477.803 | G42: 6637714.191 | H42: 743985.5544 | I42: 327290.2005 | J42: 332241.0036 | K42: 195943.4631 | L42: 950233.6118 | M42: 225967.8634 | N42: 15928905.16 | O42: 1170318.989 | P42: 17099224.15
B43: Q3 | C43: 3656291.152 | D43: 895001.0786 | E43: 509716.0727 | F43: 1623897.192 | G43: 5357644.274 | H43: 752691.3091 | I43: 334087.9641 | J43: 330585.7361 | K43: 172435.7649 | L43: 896174.1938 | M43: 187976.0733 | N43: 14206784.74 | O43: 1039989.442 | P43: 15246774.18
B44: Q4 | C44: 2217469.203 | D44: 972481.6009 | E44: 590324.4843 | F44: 1067488.598 | G44: 5595349.062 | H44: 749111.6664 | I44: 386002.6956 | J44: 338343.4891 | K44: 146970.7609 | L44: 932921.3798 | M44: 280329.6842 | N44: 12686468.14 | O44: 918332.3711 | P44: 13604800.51
A45: 2020 | B45: Q1 | C45: 3286854.806 | D45: 962084.7226 | E45: 503125.3175 | F45: 1925771.686 | G45: 7005974.795 | H45: 734511.3424 | I45: 400561.7661 | J45: 349922.7537 | K45: 144676.3448 | L45: 1007212.447 | M45: 286593.9772 | N45: 16104164.64 | O45: 1179560.535 | P45: 17283725.17
B46: Q2 | C46: 3103787.235 | D46: 879000.7674 | E46: 422526.811 | F46: 2954959.334 | G46: 5478984.884 | H46: 738293.0729 | I46: 325310.3111 | J46: 347537.6142 | K46: 103801.3723 | L46: 1062953.456 | M46: 182431.7976 | N46: 15177059.84 | O46: 1102768.471 | P46: 16279828.31
B47: Q3 | C47: 4069954.911 | D47: 741995.7728 | E47: 369446.8119 | F47: 1728445.423 | G47: 5068326.157 | H47: 717712.2922 | I47: 336425.6382 | J47: 346169.0046 | K47: 114466.6612 | L47: 1222193.915 | M47: 157413.6602 | N47: 14503103.44 | O47: 1037668.831 | P47: 15540772.27
B48: Q4 | C48: 2447613.2 | D48: 780355.5459 | E48: 365472.7471 | F48: 1546072.598 | G48: 4602259.011 | H48: 786753.2382 | I48: 416540.2136 | J48: 346265.5725 | K48: 112379.4327 | L48: 910038.2561 | M48: 203418.6296 | N48: 12151695.7 | O48: 878337.2494 | P48: 13030032.95
A49: 2021 | B49: Q1 | C49: 3689788.645 | D49: 773072.8677 | E49: 348328.4466 | F49: 2049028.41 | G49: 5980763.406 | H49: 757215.1955 | I49: 426946.3599 | J49: 349385.5155 | K49: 94000.86426 | L49: 954717.9575 | M49: 282825.9056 | N49: 15357745.13 | O49: 1125342.534 | P49: 16483087.66
B50: Q2 | C50: 3633296.325 | D50: 714753.8286 | E50: 249074.3598 | F50: 2807127.801 | G50: 5798840.532 | H50: 797634.1146 | I50: 406270.7479 | J50: 350503.5823 | K50: 109091.5334 | L50: 972538.8559 | M50: 180106.6462 | N50: 15770163.97 | O50: 1156173.403 | P50: 16926337.37
B51: Q3 | C51: 4585922.059 | D51: 693102.8517 | E51: 276372.7272 | F51: 2337399.449 | G51: 5464892.299 | H51: 741832.1621 | I51: 395188.5308 | J51: 351998.9633 | K51: 133472.2952 | L51: 968110.4598 | M51: 164861.5444 | N51: 15836780.61 | O51: 1161724.32 | P51: 16998504.93
B52: Q4 | C52: 2764858.628 | D52: 711472.8771 | E52: 318496.0146 | F52: 1764460.663 | G52: 5872009.374 | H52: 738772.1166 | I52: 447345.4042 | J52: 352295.6706 | K52: 137320.4451 | L52: 963784.2937 | M52: 223231.6859 | N52: 13975551.16 | O52: 1016640.08 | P52: 14992191.24
A53: 2022 | B53: Q1 | C53: 4027160.092 | D53: 643329.1701 | E53: 274916.5207 | F53: 2023132.578 | G53: 6331335.294 | H53: 730120.8491 | I53: 501248.9847 | J53: 347684.707 | K53: 120146.6913 | L53: 862595.7952 | M53: 262036.6064 | N53: 15848790.77 | O53: 1210759.504 | P53: 17059550.27
B54: Q2 | C54: 3812248.569 | D54: 719511.5487 | E54: 217629.4774 | F54: 2711947.66 | G54: 6214677.761 | H54: 733748.8103 | I54: 449449.7849 | J54: 334965.5341 | K54: 128945.3431 | L54: 867949.4554 | M54: 167519.7162 | N54: 16140964.18 | O54: 1220906.279 | P54: 17361870.46
B55: Q3 | C55: 4652148.286 | D55: 651644.8948 | E55: 178006.9422 | F55: 2334657.543 | G55: 5609703.657 | H55: 704327.5326 | I55: 467333.1486 | J55: 340183.4071 | K55: 151833.9644 | L55: 924414.3341 | M55: 155886.5063 | N55: 15992133.27 | O55: 1216192.632 | P55: 17208325.91
B56: Q4 | C56: 3246161.963 | D56: 749258.5816 | E56: 219324.8793 | F56: 1851897.888 | G56: 5973149.325 | H56: 715196.2478 | I56: 497125.6237 | J56: 324241.8094 | K56: 157285.634 | L56: 844599.5809 | M56: 214819.1598 | N56: 14573735.81 | O56: 1092616.95 | P56: 15666352.76
A57: 2023 | B57: Q1 | C57: 4202092.907 | D57: 763843.23 | E57: 206964.2282 | F57: 2389369.723 | G57: 6196095.195 | H57: 850814.4381 | I57: 596350.3849 | J57: 344402.1781 | K57: 165958.3579 | L57: 867330.2904 | M57: 285164.7333 | N57: 16661421.44 | O57: 1273186.668 | P57: 17934608.11
B58: Q2 | C58: 3679510.508 | D58: 824069.6847 | E58: 189961.3572 | F58: 3504964.165 | G58: 5639096.12 | H58: 914820.0665 | I58: 609626.4589 | J58: 351028.323 | K58: 166571.9999 | L58: 904798.1843 | M58: 145090.4456 | N58: 16739575.96 | O58: 1275073.395 | P58: 18014649.35
B59: Q3 | C59: 5205513.26 | D59: 756915.1989 | E59: 168755.1049 | F59: 1940523.595 | G59: 5655943.047 | H59: 961401.212 | I59: 604693.8742 | J59: 346191.9337 | K59: 186219.1592 | L59: 967850.0524 | M59: 212088.2083 | N59: 16837339.54 | O59: 1275428.15 | P59: 18112767.69
B60: Q4 | C60: 3377406.405 | D60: 836888.94 | E60: 168658.6188 | F60: 2048735.033 | G60: 5984524.652 | H60: 809638.3381 | I60: 460979.4075 | J60: 353028.3943 | K60: 220067.154 | L60: 985213.6945 | M60: 228072.164 | N60: 15304554.18 | O60: 1139986.278 | P60: 16444540.46
A61: 2024* | B61: Q1 | C61: 3616388.943 | D61: 885697.2592 | E61: 167278.6431 | F61: 3042382.217 | G61: 7374301.762 | H61: 916164.9698 | I61: 912287.8737 | J61: 358513.5401 | K61: 241454.6807 | L61: 887524.3464 | M61: 244611.3513 | N61: 18479326.94 | O61: 1390528.896 | P61: 19869855.84
B62: Q2 | C62: 3741063.283 | D62: 839989.9205 | E62: 181911.2876 | F62: 2885773.537 | G62: 6802002.649 | H62: 947725.8314 | I62: 970097.2222 | J62: 353913.962 | K62: 189938.8367 | L62: 885761.661 | M62: 121680.4306 | N62: 17737947.33 | O62: 1332066.512 | P62: 19070013.85
B63: Q3 | C63: 5087467.557 | D63: 953964.634 | E63: 380939.7743 | F63: 2264903.237 | G63: 6263179.724 | H63: 1200023.753 | I63: 435074.56 | J63: 370377.3281 | K63: 142256.0189 | L63: 926785.5819 | M63: 130109.6598 | N63: 17774142.05 | O63: 1342841.14 | P63: 19116983.19
B64: Q4 | C64: 3704411.089 | D64: 1001134.194 | E64: 341750.5604 | F64: 2510751.814 | G64: 6726065.627 | H64: 1188768.187 | I64: 344735.2726 | J64: 402844.2515 | K64: 178338.3399 | L64: 699897.144 | M64: 191375.5918 | N64: 16948321.51 | O64: 1260406.12 | P64: 18208727.63
A65: 2025 | B65: Q1 | C65: 3991467.043 | D65: 1327519.13 | E65: 463985.7636 | F65: 2205684.076 | G65: 8597675.262 | H65: 1260391.366 | I65: 740328.4621 | J65: 412072.6229 | K65: 181978.454 | L65: 804744.4066 | M65: 189593.5044 | N65: 19711454.33 | O65: 1506984.668 | P65: 21218438.99
A66: * preliminary

Sheet T.1.3
A1: Table 1.3.Quarterly Gross Value Added at Constant Prices (by Economic Activities) Real Growth Rates, comparison with corresponding quarter of previous year
A3: Non-Seasonally Adjusted
O4: (in %)
A5: ISIC Rev.4 | C5: Gross value added by industry | N5: Gross value added | O5: Net Taxes | P5: Gross domestic product
C6: Agriculture, forestry and fishing | D6: Mining and quarrying; manufacturing; electricity, gas, steam and air conditioning supply; water supply; sewerage, waste management and remediation activities | F6: Construction | G6: Wholesale and retail trade; repair of motor vehicles and motorcycles; transportation and storage; accommodation and food service activities | H6: Information and communication | I6: Financial and insurance activities | J6: Real estate activities | K6: Professional, scientific and technical activities; | L6: Public administration and defence; compulsory social security | M6: Arts, entertainment and recreation, repair of household goods and other services
D7: Total | E7: of which: Manufacturing
C8: 1 | D8: 2 | E8: 2a | F8: 3 | G8: 4 | H8: 5 | I8: 6 | J8: 7 | K8: 8 | L8: 9 | M8: 10 | N8: 11=1+2+..10 | O8: 12 | P8: 13=11+12
A10: 2014 | C10: -12.38462054 | D10: 8.412961925 | E10: 3.257616001 | F10: 11.53320298 | G10: 1.677572035 | H10: -3.534813114 | I10: 4.669441891 | J10: 10.65137393 | K10: 9.042517908 | L10: -11.05908533 | M10: 28.0074804 | N10: -1.458116043 | O10: -0.7072740519 | P10: -1.40738252
A11: 2015 | C11: 3.950153127 | D11: 3.047750976 | E11: 2.637964752 | F11: 54.74255348 | G11: -1.944179915 | H11: 9.498799681 | I11: 2.425459343 | J11: 0.9947107724 | K11: 2.41206118 | L11: 1.783259497 | M11: 1.447678653 | N11: 4.047281461 | O11: 4.205879665 | P11: 4.058073854
A12: 2016 | C12: -0.2345635182 | D12: -3.762645526 | E12: -7.046027129 | F12: 44.35476151 | G12: -2.762767313 | H12: -2.680174345 | I12: -7.396043583 | J12: 0.1568438248 | K12: -0.250623407 | L12: 1.520645699 | M12: 2.23937747 | N12: 1.941397876 | O12: 1.970186979 | P12: 1.943359718
A13: 2017 | C13: -4.379155505 | D13: -6.456519195 | E13: -7.866907105 | F13: -1.426987512 | G13: 15.2776114 | H13: 27.94048957 | I13: 1.122604742 | J13: 2.644585085 | K13: -2.759946878 | L13: 1.38155603 | M13: -8.577848585 | N13: 4.806706976 | O13: 5.040032705 | P13: 4.822611213
A14: 2018 | C14: 3.691250193 | D14: 2.110679632 | E14: -1.204661631 | F14: 1.970880794 | G14: 12.3703516 | H14: 11.09397247 | I14: 12.8866032 | J14: 2.900346003 | K14: -4.10143967 | L14: 5.937260457 | M14: -6.231118043 | N14: 7.229088883 | O14: 7.314024893 | P14: 7.234890405
A15: 2019 | C15: -0.1120026252 | D15: 1.438016331 | E15: -5.176750657 | F15: 24.00936239 | G15: 4.468064229 | H15: 13.57372221 | I15: 7.491806408 | J15: 1.671605657 | K15: -3.050848055 | L15: 17.85620637 | M15: -2.028402702 | N15: 6.273441027 | O15: 5.521659703 | P15: 6.222052994
A16: 2020 | C16: 10.59077839 | D16: -12.64155554 | E16: -29.63592754 | F16: 20.04455919 | G16: -7.310758992 | H16: 1.646503118 | I16: 1.733636018 | J16: 3.284082744 | K16: -32.52077685 | L16: 7.986644597 | M16: -19.54735587 | N16: 0.6277118639 | O16: 0.09424806679 | P16: 0.5914873691
A17: 2021 | C17: 13.67854633 | D17: -14.00455577 | E17: -28.20113957 | F17: 9.843565514 | G17: 4.337337541 | H17: 1.954261591 | I17: 13.31539514 | J17: 1.028047969 | K17: -0.3026721983 | L17: -8.16787226 | M17: 2.550763595 | N17: 5.185404629 | O17: 6.229737381 | P17: 5.255968789
A18: 2022* | C18: 3.645962086 | D18: 2.690608445 | E18: 1.125698224 | F18: 3.188045547 | G18: 5.83737289 | H18: 18.18778016 | I18: 12.2674364 | J18: 3.543735468 | K18: -0.6170215497 | L18: -1.340530468 | M18: -3.386908224 | N18: 4.876486161 | O18: 5.296807668 | P18: 4.905149466
A19: 2023* | C19: 3.311370325 | D19: 12.33256314 | E19: -9.01493685 | F19: 10.47443279 | G19: -2.644699296 | H19: 27.2363775 | I19: 16.4150715 | J19: 3.918101572 | K19: 23.78938948 | L19: 8.224542848 | M19: 5.550800778 | N19: 4.70148882 | O19: 4.478315406 | P19: 4.686212966
A21: 2014 | B21: Q1 | C21: -6.905630574 | D21: 6.819734563 | E21: 0.6387767325 | F21: 38.82187414 | G21: 3.312537392 | H21: 30.13118762 | I21: 22.73178091 | J21: 6.96241051 | K21: 13.58078212 | L21: -7.772850283 | M21: 26.88543307 | N21: 4.58325179 | O21: 7.352176246 | P21: 4.767471904
B22: Q2 | C22: -10.01482073 | D22: 21.10880191 | E22: 19.07703408 | F22: 3.423084619 | G22: -5.907912728 | H22: 2.758699075 | I22: -4.207936353 | J22: 12.96794914 | K22: 11.55830413 | L22: -10.40860242 | M22: 24.37030487 | N22: -2.926982875 | O22: 7.516802558 | P22: -2.282381045
B23: Q3 | C23: -16.36506188 | D23: 11.59179231 | E23: 8.223548503 | F23: 35.61499669 | G23: 13.76202162 | H23: -16.40938979 | I23: -5.631437246 | J23: 8.943174841 | K23: 8.592763713 | L23: -12.32791067 | M23: 28.33902419 | N23: -2.128607931 | O23: -2.7045317 | P23: -2.16832557
B24: Q4 | C24: -9.878790448 | D24: -4.074751915 | E24: -12.39655632 | F24: -31.99151267 | G24: -2.075588873 | H24: -18.49543166 | I24: 9.193296863 | J24: 13.83290579 | K24: 3.38391755 | L24: -13.35043508 | M24: 32.03334104 | N24: -5.077961007 | O24: -13.76732721 | P24: -5.717484152
A25: 2015 | B25: Q1 | C25: 3.330855767 | D25: 17.36463004 | E25: 25.20809642 | F25: 59.83811558 | G25: 3.59175896 | H25: 4.779120427 | I25: 11.87492423 | J25: 5.563664404 | K25: 10.07796618 | L25: 3.289143584 | M25: 3.54266257 | N25: 8.969472964 | O25: 9.355523248 | P25: 8.995791044
B26: Q2 | C26: 4.287492051 | D26: -12.54912283 | E26: -18.50032818 | F26: 60.49233083 | G26: 6.486388519 | H26: 18.03520899 | I26: 5.501892639 | J26: 3.252469788 | K26: 4.376686099 | L26: -2.673673219 | M26: 0.07689126624 | N26: 7.645738642 | O26: 8.392728941 | P26: 7.696467142
B27: Q3 | C27: 3.187681835 | D27: -6.656352798 | E27: -12.57233596 | F27: 38.93098837 | G27: -22.13632352 | H27: 9.171728686 | I27: -2.427840042 | J27: 0.02625532245 | K27: -5.8231316 | L27: 4.858279745 | M27: 1.224808378 | N27: -4.734749653 | O27: -5.320558984 | P27: -4.774927608
B28: Q4 | C28: 6.40810127 | D28: 17.27855787 | E28: 23.47222436 | F28: 55.96172754 | G28: 3.697031654 | H28: 6.105937555 | I28: -4.367799077 | J28: -4.707650991 | K28: 2.129680046 | L28: 1.856373667 | M28: 0.5107265658 | N28: 6.447777562 | O28: 6.826904929 | P28: 6.473298345
A29: 2016 | B29: Q1 | C29: 5.356436047 | D29: 17.45290185 | E29: 19.41731704 | F29: 43.47396862 | G29: -3.877913582 | H29: -11.27387361 | I29: -9.817223258 | J29: 0.4646593853 | K29: 2.174531183 | L29: 1.208379569 | M29: 6.742634735 | N29: 4.908824834 | O29: 5.146365677 | P29: 4.925072074
B30: Q2 | C30: -0.3380866112 | D30: -1.134941635 | E30: -2.19321762 | F30: 54.84105921 | G30: -10.95595959 | H30: -14.23549524 | I30: -11.95016806 | J30: -3.323874112 | K30: -0.5880244564 | L30: -2.245112407 | M30: 3.515177488 | N30: 0.02374783014 | O30: 0.1712158817 | P30: 0.03382720722
B31: Q3 | C31: -4.517570388 | D31: -2.638349006 | E31: -4.503193979 | F31: 3.646928733 | G31: 8.094414825 | H31: -0.9221219717 | I31: -4.538960006 | J31: -0.0863176779 | K31: 0.9248531601 | L31: -2.963768988 | M31: -3.449508605 | N31: 0.06173824794 | O31: 0.2663571497 | P31: 0.07569170016
B32: Q4 | C32: 5.064012189 | D32: -25.75430182 | E32: -36.26214081 | F32: 87.17369322 | G32: -0.2938336402 | H32: 18.06558828 | I32: -3.150979786 | J32: 3.844167713 | K32: -3.554877386 | L32: 10.61740259 | M32: 0.5544383312 | N32: 3.19441065 | O32: 2.609989143 | P32: 3.154939936
A33: 2017 | B33: Q1 | C33: 9.489659976 | D33: -28.43218483 | E33: -36.36793222 | F33: -28.15634874 | G33: -8.624120331 | H33: 23.03214475 | I33: 3.324901899 | J33: 0.3759589346 | K33: -10.11584953 | L33: -1.241312665 | M33: -12.57232394 | N33: -8.000120174 | O33: -8.417735659 | P33: -8.028744344
B34: Q2 | C34: 0.86259096 | D34: -5.561060357 | E34: -9.123624362 | F34: 7.508647941 | G34: 11.62489134 | H34: 43.54937512 | I34: 6.786908058 | J34: 5.087755097 | K34: 2.416991564 | L34: 1.660387618 | M34: -8.643945579 | N34: 7.146110343 | O34: 7.494062543 | P34: 7.169925388
B35: Q3 | C35: -16.31445641 | D35: -3.837317899 | E35: -4.502294862 | F35: 14.71569601 | G35: 39.07645061 | H35: 24.95823998 | I35: -0.3728378287 | J35: 5.215082328 | K35: -2.524749411 | L35: 7.967892124 | M35: -11.79413772 | N35: 7.309194541 | O35: 7.266081138 | P35: 7.306248934
B36: Q4 | C36: 2.435342151 | D36: 20.7772903 | E36: 37.32172765 | F36: 15.84480088 | G36: 24.81472306 | H36: 21.49978961 | I36: -4.50038978 | J36: -0.009496831097 | K36: -0.2461033972 | L36: -2.88903883 | M36: -1.715121252 | N36: 14.22592824 | O36: 15.67856517 | P36: 14.32351827
A37: 2018 | B37: Q1 | C37: 7.187209426 | D37: 21.01848538 | E37: 32.39622983 | F37: -13.67505568 | G37: 18.80787424 | H37: 19.02597781 | I37: 14.59701074 | J37: 5.634844109 | K37: 6.941864186 | L37: 18.81575752 | M37: 0.02366859392 | N37: 11.64114814 | O37: 11.16310322 | P37: 11.6085206
B38: Q2 | C38: 6.303417285 | D38: 12.60187084 | E38: 17.50120423 | F38: 12.8636518 | G38: 0.9750225952 | H38: 5.069786649 | I38: 7.358810003 | J38: -2.036718161 | K38: 1.31817446 | L38: 4.72653967 | M38: -3.260628294 | N38: 5.123414445 | O38: 5.147221546 | P38: 5.125048813
B39: Q3 | C39: -0.5443477432 | D39: -2.921157077 | E39: -12.22934389 | F39: 26.02888265 | G39: 14.14116413 | H39: 12.28554067 | I39: 16.98040433 | J39: 0.01934088652 | K39: -5.326671705 | L39: -1.560039238 | M39: -7.199773346 | N39: 7.488684831 | O39: 8.084821436 | P39: 7.529399016
B40: Q4 | C40: 4.687049658 | D40: -18.24495046 | E40: -32.67704765 | F40: -26.28864316 | G40: 16.5938268 | H40: 9.458304405 | I40: 12.65728129 | J40: 8.283223858 | K40: -19.16649306 | L40: 3.497753582 | M40: -14.20330766 | N40: 5.043983229 | O40: 5.15415501 | P40: 5.051472441
A41: 2019 | B41: Q1 | C41: 8.824443855 | D41: -3.511415947 | E41: -12.62574231 | F41: 24.94634855 | G41: 20.94864623 | H41: 13.10743386 | I41: 10.36023228 | J41: 1.232909217 | K41: -3.757470872 | L41: 30.61355331 | M41: 0.6140315776 | N41: 15.17342355 | O41: 14.07382344 | P41: 15.09867312
B42: Q2 | C42: 4.834236394 | D42: -4.151489603 | E42: -13.67492225 | F42: 10.06983273 | G42: 24.27492367 | H42: 15.11685791 | I42: 4.558103459 | J42: 2.814702935 | K42: -0.3505076499 | L42: 20.15542626 | M42: -6.272883891 | N42: 13.55569898 | O42: 13.16138882 | P42: 13.5286237
B43: Q3 | C43: -11.42757484 | D43: 2.196281546 | E43: -4.057115266 | F43: 37.4323725 | G43: -12.16466731 | H43: 15.50833162 | I43: 3.190877561 | J43: 2.43744351 | K43: -4.616675106 | L43: 7.012768796 | M43: -2.63333699 | N43: -3.972088935 | O43: -4.63120152 | P43: -4.017336692
B44: Q4 | C44: 4.044230224 | D44: 13.2955527 | E44: 16.34033826 | F44: 49.4072601 | G44: -10.05558822 | H44: 10.65445722 | I44: 11.10366104 | J44: 0.2867010038 | K44: -3.765217947 | L44: 13.47583449 | M44: -1.13091141 | N44: 1.126176865 | O44: 0.2601013151 | P44: 1.067245597
A45: 2020 | B45: Q1 | C45: 9.40813703 | D45: -6.201861921 | E45: -25.46813594 | F45: 43.96628223 | G45: 10.98871345 | H45: 7.501846508 | I45: -1.401707632 | J45: 1.565018991 | K45: -23.47201727 | L45: -9.444626516 | M45: -15.01093256 | N45: 9.16255002 | O45: 10.67983288 | P45: 9.264775961
B46: Q2 | C46: 11.0846187 | D46: -8.148159704 | E46: -27.75876421 | F46: 6.890325959 | G46: -17.45675204 | H46: -0.765133339 | I46: -0.6049339051 | J46: 4.604070676 | K46: -47.02483531 | L46: 11.86232969 | M46: -19.26648554 | N46: -4.720006233 | O46: -5.771974887 | P46: -4.792005926
B47: Q3 | C47: 11.31375324 | D47: -17.09554429 | E47: -27.51909706 | F47: 6.43810656 | G47: -5.400099408 | H47: -4.647192878 | I47: 0.6997181185 | J47: 4.713835706 | K47: -33.61779598 | L47: 36.379057 | M47: -16.25867194 | N47: 2.08575482 | O47: -0.2231379488 | P47: 1.928264188
B48: Q4 | C48: 10.37867837 | D48: -19.75626633 | E48: -38.08951572 | F48: 44.83270369 | G48: -17.74849148 | H48: 5.024827877 | I48: 7.91121886 | J48: 2.341432204 | K48: -23.53619729 | L48: -2.452845886 | M48: -27.43592953 | N48: -4.215298042 | O48: -4.355190223 | P48: -4.22474085
A49: 2021 | B49: Q1 | C49: 12.25894856 | D49: -19.64607175 | E49: -30.76706051 | F49: 6.400380964 | G49: -14.63338678 | H49: 3.091014633 | I49: 6.586897697 | J49: -0.1535304923 | K49: -35.02679072 | L49: -5.211858708 | M49: -1.314776967 | N49: -4.634947106 | O49: -4.596457712 | P49: -4.632320325
B50: Q2 | C50: 17.06009628 | D50: -18.68564225 | E50: -41.05122958 | F50: -5.002828006 | G50: 5.837863314 | H50: 8.037599692 | I50: 24.88714128 | J50: 0.8534236237 | K50: 5.096426911 | L50: -8.505979186 | M50: -1.274531874 | N50: 3.907898695 | O50: 4.84280552 | P50: 3.971227727
B51: Q3 | C51: 12.67746594 | D51: -6.589380005 | E51: -25.19282389 | F51: 35.23131352 | G51: 7.824400586 | H51: 3.36065999 | I51: 17.46682951 | J51: 1.684136542 | K51: 16.6036414 | L51: -20.78912779 | M51: 4.731409019 | N51: 9.195805467 | O51: 11.95521008 | P51: 9.380052948
B52: Q4 | C52: 12.96142007 | D52: -8.827087752 | E52: -12.8536896 | F52: 14.12534348 | G52: 27.58971975 | H52: -6.098623981 | I52: 7.395490177 | J52: 1.741466247 | K52: 22.1935739 | L52: 5.905909695 | M52: 9.740040198 | N52: 15.00906134 | O52: 15.74598259 | P52: 15.05873623
A53: 2022 | B53: Q1 | C53: 9.143381357 | D53: -16.78285489 | E53: -21.07548972 | F53: -1.263810275 | G53: 5.861657867 | H53: -3.578156711 | I53: 17.40326932 | J53: -0.4867999664 | K53: 27.81445387 | L53: -9.649149432 | M53: -7.350563994 | N53: 3.197381113 | O53: 7.590308564 | P53: 3.497297501
B54: Q2 | C54: 4.925341293 | D54: 0.6656445742 | E54: -12.62469665 | F54: -3.390659344 | G54: 7.171040951 | H54: -8.009349543 | I54: 10.62814325 | J54: -4.433064028 | K54: 18.19922141 | L54: -10.75426446 | M54: -6.988598289 | N54: 2.35127686 | O54: 5.59888995 | P54: 2.573108896
B55: Q3 | C55: 1.444120203 | D55: -5.981501423 | E55: -35.59171197 | F55: -0.1173058539 | G55: 2.649848336 | H55: -5.055675848 | I55: 18.25574685 | J55: -3.356701981 | K55: 13.75691429 | L55: -4.51354753 | M55: -5.443985181 | N55: 0.9809611099 | O55: 4.68857467 | P55: 1.234349561
B56: Q4 | C56: 17.40788227 | D56: 5.310912868 | E56: -31.13732378 | F56: 4.955464651 | G56: 1.722407861 | H56: -3.191223414 | I56: 11.12791571 | J56: -7.96315808 | K56: 14.53912336 | L56: -12.36632653 | M56: -3.768517928 | N56: 4.280222282 | O56: 7.473330192 | P56: 4.496751102
A57: 2023 | B57: Q1 | C57: 4.343825686 | D57: 18.73287665 | E57: -24.7174278 | F57: 18.10247873 | G57: -2.136043869 | H57: 16.53063176 | I57: 18.97288634 | J57: -0.9441108081 | K57: 38.12977797 | L57: 0.5488660245 | M57: 8.826296151 | N57: 5.127398554 | O57: 5.156033374 | P57: 5.12943084
B58: Q2 | C58: -3.481883686 | D58: 14.5318218 | E58: -12.71340656 | F58: 29.24158593 | G58: -9.261649009 | H58: 24.67755364 | I58: 35.6383915 | J58: 4.795355714 | K58: 29.18031466 | L58: 4.245492481 | M58: -13.38903335 | N58: 3.708649412 | O58: 4.436631739 | P58: 3.759841949
B59: Q3 | C59: 11.89482666 | D59: 16.15455058 | E59: -5.197458711 | F59: -16.88187415 | G59: 0.8242751001 | H59: 36.49916658 | I59: 29.39246362 | J59: 1.766260926 | K59: 22.64657639 | L59: 4.698728339 | M59: 36.05296142 | N59: 5.285137717 | O59: 4.870570364 | P59: 5.255838309
B60: Q4 | C60: 4.043065091 | D60: 11.69560956 | E60: -23.10100921 | F60: 10.62894163 | G60: 0.1904410353 | H60: 13.20505953 | I60: -7.271042676 | J60: 8.878122467 | K60: 39.91560979 | L60: 16.64861276 | M60: 6.169377177 | N60: 5.014626164 | O60: 4.335401165 | P60: 4.967255039
A61: 2024* | B61: Q1 | C61: -16.41935282 | D61: 14.46921182 | E61: 3.860867122 | F61: 23.14445791 | G61: 23.43935847 | H61: 17.00509669 | I61: 28.13700229 | J61: 6.772589426 | K61: 20.54530737 | L61: -4.373603056 | M61: -36.05330886 | N61: 10.33335402 | O61: 9.627145005 | P61: 10.28330918
B62: Q2 | C62: -0.6315065144 | D62: 3.15204472 | E62: 7.400106501 | F62: -18.96282721 | G62: 22.9403736 | H62: 7.797540235 | I62: 45.8769263 | J62: 2.102716161 | K62: 2.759214738 | L62: -6.303650528 | M62: -20.21957971 | N62: 5.955255676 | O62: 4.662197794 | P62: 5.863522907
B63: Q3 | C63: 1.620096691 | D63: 9.003240353 | E63: 19.19942273 | F63: 25.76630636 | G63: 2.585205941 | H63: 4.588909492 | I63: 0.6414293049 | J63: 1.564919693 | K63: 4.549541826 | L63: 4.688369968 | M63: -1.700566594 | N63: 5.260834923 | O63: 4.472384944 | P63: 5.205063136
B64: Q4 | C64: 14.75046869 | D64: 5.683834499 | E64: 3.136566343 | F64: 32.76590671 | G64: 3.070533522 | H64: 21.3668487 | I64: 7.859671018 | J64: 7.875464462 | K64: 14.6023464 | L64: -21.42144068 | M64: 42.79713451 | N64: 9.732025896 | O64: 9.644709666 | P64: 9.725977396
A65: 2025 | B65: Q1 | C65: 15.43008575 | D65: 35.47394735 | E65: 41.22912157 | F65: -21.61921207 | G65: 7.11313093 | H65: 13.85547384 | I65: 16.39410093 | J65: 8.675181803 | K65: 6.962186123 | L65: 2.36995534 | M65: 29.82585841 | N65: 6.530392039 | O65: 7.474545692 | P65: 6.596900522
A67: * preliminary
